OrganisationNameLabel,OrganisationURI,EffectiveDate,Directorate/ServiceWhereExpenditureIncurred,ServiceCategoryLabel,ServiceCategoryURI,Supplier,SupplierRegisteredCompany Number,PaymentDate,TransactionNumber,NetAmount,IrrecoverableVAT,PurposeOfSpend,ProcurementClassification:ProclassLabel,ProcrementClassification:ProClassCode
South Lakeland District Council,http://opendatacommunities.org/id/district-council/south-lakeland,31/08/2017,Development Implementation,Central Services,http://opendatacommunities.org/def/concept/finance/sercop/objective/102,MARGARET BARROW INTERIORS LTD T/A MBI,,23/08/2017,70324,260,0,1 x Chair as per,211200,Furniture & Soft Furn Office Furniture
South Lakeland District Council,http://opendatacommunities.org/id/district-council/south-lakeland,31/08/2017,Development Implementation,Central Services,http://opendatacommunities.org/def/concept/finance/sercop/objective/102,MARGARET BARROW INTERIORS LTD T/A MBI,,14/08/2017,70325,174,0,1 x Torasen OC97 chair as per your quote,211200,Furniture & Soft Furn Office Furniture
South Lakeland District Council,http://opendatacommunities.org/id/district-council/south-lakeland,31/08/2017,Leisure and Wellbeing,Highways & Transport Services,http://opendatacommunities.org/def/concept/finance/sercop/objective/107,ARCO LIMITED,133804,21/08/2017,70423,9.13,0,14A1007 1 pack of 12prs Arco PU Grip,141100,Clothing Protective
South Lakeland District Council,http://opendatacommunities.org/id/district-council/south-lakeland,31/08/2017,Financial Services,Central Services,http://opendatacommunities.org/def/concept/finance/sercop/objective/102,TIAA Ltd,4546319,07/08/2017,70139,4924.95,0,17/18 Internal Audit,201100,Financial Services Audit
South Lakeland District Council,http://opendatacommunities.org/id/district-council/south-lakeland,31/08/2017,Financial Services,Central Services,http://opendatacommunities.org/def/concept/finance/sercop/objective/102,CUMBRIA LGPS,,23/08/2017,70388,72651,0,17/18 Quarterly Contribution re. past,908999,Public Bodies Not Elsewhere Classified
South Lakeland District Council,http://opendatacommunities.org/id/district-council/south-lakeland,31/08/2017,Financial Services,Central Services,http://opendatacommunities.org/def/concept/finance/sercop/objective/102,GREATER MANCHESTER PENSION FUND,,09/08/2017,70354,10928.48,0,17/18 Rechargeable Pension Costs - Half,908999,Public Bodies Not Elsewhere Classified
South Lakeland District Council,http://opendatacommunities.org/id/district-council/south-lakeland,31/08/2017,Social Enterprise Admin,Highways & Transport Services,http://opendatacommunities.org/def/concept/finance/sercop/objective/107,BEMROSE BOOTH PARAGON LTD,4891375,30/08/2017,70664,2212.5,0,"175,000 Aura Self Adhesive Single Issue",191600,Facilities Printing
South Lakeland District Council,http://opendatacommunities.org/id/district-council/south-lakeland,31/08/2017,Kendal Town Hall,Cultural Environmental Regulatory & Planning Services,http://opendatacommunities.org/def/concept/finance/sercop/objective/104,W MCCLURE LTD,685360,09/08/2017,70356,285.45,0,2 boxes of fair trade decaf coffee,111200,Catering Food & Beverages
South Lakeland District Council,http://opendatacommunities.org/id/district-council/south-lakeland,31/08/2017,Human Resources,Central Services,http://opendatacommunities.org/def/concept/finance/sercop/objective/102,KENTDALE FIRST AID TRAINING,,16/08/2017,70365,180,0,2 Delegates on the 29/09/2017,261500,HR Training & Conferences
South Lakeland District Council,http://opendatacommunities.org/id/district-council/south-lakeland,31/08/2017,Kendal Town Hall,Cultural Environmental Regulatory & Planning Services,http://opendatacommunities.org/def/concept/finance/sercop/objective/104,BUNZL CLEANING & HYGIENE SUPPLIES,2902454,07/08/2017,70225,37.21,0,2 x 5 litre care free maintainer for KTH,131011,Cleaning & Janitorial Cleaning Materials
South Lakeland District Council,http://opendatacommunities.org/id/district-council/south-lakeland,31/08/2017,Lake Wardens,Cultural Environmental Regulatory & Planning Services,http://opendatacommunities.org/def/concept/finance/sercop/objective/104,SHORROCK TRICHEM,4179799,14/08/2017,70503,45.88,0,2 x 5 Lts - Bleach,131312,Cleaning & Janitorial Washroom Sanitat
South Lakeland District Council,http://opendatacommunities.org/id/district-council/south-lakeland,31/08/2017,Development Implementation,Central Services,http://opendatacommunities.org/def/concept/finance/sercop/objective/102,MARGARET BARROW INTERIORS LTD T/A MBI,,23/08/2017,70472,827,0,2 x Task Chairs (M207HA) @ 140 each &,211200,Furniture & Soft Furn Office Furniture
South Lakeland District Council,http://opendatacommunities.org/id/district-council/south-lakeland,31/08/2017,Printing Section,Central Services,http://opendatacommunities.org/def/concept/finance/sercop/objective/102,TAALUS TECHNICAL SOLUTIONS LTD,7931407,21/08/2017,70192,105,0,21up Xerox Labels,279999,ICT Not Elsewhere Classified
South Lakeland District Council,http://opendatacommunities.org/id/district-council/south-lakeland,31/08/2017,Printing Section,Central Services,http://opendatacommunities.org/def/concept/finance/sercop/objective/102,TAALUS TECHNICAL SOLUTIONS LTD,7931407,07/08/2017,68819,105,0,24 p Xerox Labels (100 per box),279999,ICT Not Elsewhere Classified
South Lakeland District Council,http://opendatacommunities.org/id/district-council/south-lakeland,31/08/2017,ICT Group,Central Services,http://opendatacommunities.org/def/concept/finance/sercop/objective/102,IT PROFESSIONAL SERVICES (ITPS),,02/08/2017,70185,2000,0,24/7 Maintenance Contract for Eden and,279999,ICT Not Elsewhere Classified
South Lakeland District Council,http://opendatacommunities.org/id/district-council/south-lakeland,31/08/2017,Environment and Housing,Housing,http://opendatacommunities.org/def/concept/finance/sercop/objective/108,ENVIRONMENT & HOUSING GRANTS,,07/08/2017,70232,12787.6,0,"Endmoor, Kendal, LA8",201700,Financial Services Grants
South Lakeland District Council,http://opendatacommunities.org/id/district-council/south-lakeland,31/08/2017,Electoral Services,Central Services,http://opendatacommunities.org/def/concept/finance/sercop/objective/102,SHAW & SONS LTD,176653,23/08/2017,70223,46.71,0,3 Parish Election Presiding Officer,191600,Facilities Printing
South Lakeland District Council,http://opendatacommunities.org/id/district-council/south-lakeland,31/08/2017,Policy & Partnerships,Central Services,http://opendatacommunities.org/def/concept/finance/sercop/objective/102,MERITEC LTD,3224622,23/08/2017,66805,18000,0,30 Implementation Merits Days (600 a,391200,Construction Engineering
South Lakeland District Council,http://opendatacommunities.org/id/district-council/south-lakeland,31/08/2017,Social Enterprise Admin,Highways & Transport Services,http://opendatacommunities.org/def/concept/finance/sercop/objective/107,BEMROSE BOOTH PARAGON LTD,4891375,30/08/2017,70665,-1687.5,0,350000 Aura Self Adhesive Pay and,191600,Facilities Printing
South Lakeland District Council,http://opendatacommunities.org/id/district-council/south-lakeland,31/08/2017,Social Enterprise Admin,Highways & Transport Services,http://opendatacommunities.org/def/concept/finance/sercop/objective/107,BEMROSE BOOTH PARAGON LTD,4891375,30/08/2017,70666,2068,0,350000 Aura Self Adhesive Pay and,191600,Facilities Printing
South Lakeland District Council,http://opendatacommunities.org/id/district-council/south-lakeland,31/08/2017,Social Enterprise Admin,Highways & Transport Services,http://opendatacommunities.org/def/concept/finance/sercop/objective/107,BEMROSE BOOTH PARAGON LTD,4891375,30/08/2017,70667,-875,0,350000 Aura Self Adhesive Pay and,191600,Facilities Printing
South Lakeland District Council,http://opendatacommunities.org/id/district-council/south-lakeland,31/08/2017,Lake Wardens,Cultural Environmental Regulatory & Planning Services,http://opendatacommunities.org/def/concept/finance/sercop/objective/104,WCF FUELS-NW,,09/08/2017,70385,1888,0,4000 Litres of Red Diesel,381100,Vehicle Mgt Fuel
South Lakeland District Council,http://opendatacommunities.org/id/district-council/south-lakeland,31/08/2017,Kendal Town Hall,Cultural Environmental Regulatory & Planning Services,http://opendatacommunities.org/def/concept/finance/sercop/objective/104,THOMAS GRAHAM & SONS LTD,656879,14/08/2017,70163,118.95,0,5 packs of mini jumbo toilet rolls for,101400,Building General Materials
South Lakeland District Council,http://opendatacommunities.org/id/district-council/south-lakeland,31/08/2017,Kendal Town Hall,Cultural Environmental Regulatory & Planning Services,http://opendatacommunities.org/def/concept/finance/sercop/objective/104,THOMAS GRAHAM & SONS LTD,656879,09/08/2017,68510,64.5,0,5 toilet brush sets for Kendal Town Hall,101400,Building General Materials
South Lakeland District Council,http://opendatacommunities.org/id/district-council/south-lakeland,31/08/2017,Kendal Town Hall,Cultural Environmental Regulatory & Planning Services,http://opendatacommunities.org/def/concept/finance/sercop/objective/104,THOMAS GRAHAM & SONS LTD,656879,09/08/2017,68510,44,0,5 toilet brush sets for Kendal Town Hall,101400,Building General Materials
South Lakeland District Council,http://opendatacommunities.org/id/district-council/south-lakeland,31/08/2017,Kendal Town Hall,Highways & Transport Services,http://opendatacommunities.org/def/concept/finance/sercop/objective/107,MARGARET BARROW INTERIORS LTD T/A MBI,,30/08/2017,70769,700,0,5 x M207HA mesh chair ( 1 black + 4,211200,Furniture & Soft Furn Office Furniture
South Lakeland District Council,http://opendatacommunities.org/id/district-council/south-lakeland,31/08/2017,Lake Wardens,Cultural Environmental Regulatory & Planning Services,http://opendatacommunities.org/def/concept/finance/sercop/objective/104,SHORROCK TRICHEM,4179799,14/08/2017,70504,207.75,0,6 x Packs of Jumbo Toilet Rolls.,131312,Cleaning & Janitorial Washroom Sanitat
South Lakeland District Council,http://opendatacommunities.org/id/district-council/south-lakeland,31/08/2017,Printing Section,Central Services,http://opendatacommunities.org/def/concept/finance/sercop/objective/102,STANDING STONE DRAWING OFFICE SUPPLIES,5128817,07/08/2017,70191,207.83,0,6 x rolls of 90gsm A0 plotter paper,341100,Stationery Sundries
South Lakeland District Council,http://opendatacommunities.org/id/district-council/south-lakeland,31/08/2017,Development Strategy,Central Services,http://opendatacommunities.org/def/concept/finance/sercop/objective/102,ROYAL TOWN PLANNING INSTITUTE,,23/08/2017,70696,425,0,A 5-place multi-buy ticket to RTPI,908999,Public Bodies Not Elsewhere Classified
South Lakeland District Council,http://opendatacommunities.org/id/district-council/south-lakeland,31/08/2017,Printing Section,Central Services,http://opendatacommunities.org/def/concept/finance/sercop/objective/102,STANDING STONE DRAWING OFFICE SUPPLIES,5128817,16/08/2017,70498,346.38,0,A0plotter paper 90gsm 110m,341100,Stationery Sundries
South Lakeland District Council,http://opendatacommunities.org/id/district-council/south-lakeland,31/08/2017,Social Enterprise Admin,Cultural Environmental Regulatory & Planning Services,http://opendatacommunities.org/def/concept/finance/sercop/objective/104,AJN Refurbishment Services Ltd,8248260,21/08/2017,70014,128.5,0,A4 frame for bathing sign previosly,191700,Facilities Property Management
South Lakeland District Council,http://opendatacommunities.org/id/district-council/south-lakeland,31/08/2017,Business Support Community Services,Housing Services,http://opendatacommunities.org/def/concept/finance/sercop/objective/108,The County Hotel,1815672,07/08/2017,70207,175,0,Accommodation for,250000,Housing
South Lakeland District Council,http://opendatacommunities.org/id/district-council/south-lakeland,31/08/2017,Business Support Community Services,Housing Services,http://opendatacommunities.org/def/concept/finance/sercop/objective/108,The County Hotel,1815672,09/08/2017,70357,175,0,Accommodation for,250000,Housing
South Lakeland District Council,http://opendatacommunities.org/id/district-council/south-lakeland,31/08/2017,Business Support Community Services,Housing Services,http://opendatacommunities.org/def/concept/finance/sercop/objective/108,The County Hotel,1815672,16/08/2017,70551,175,0,Accommodation for,250000,Housing
South Lakeland District Council,http://opendatacommunities.org/id/district-council/south-lakeland,31/08/2017,Business Support Community Services,Housing Services,http://opendatacommunities.org/def/concept/finance/sercop/objective/108,The County Hotel,1815672,21/08/2017,70676,175,0,Accommodation for,250000,Housing
South Lakeland District Council,http://opendatacommunities.org/id/district-council/south-lakeland,31/08/2017,Business Support Community Services,Cultural Environmental Regulatory & Planning Services,http://opendatacommunities.org/def/concept/finance/sercop/objective/104,Greenwich Leisure Ltd,,07/08/2017,70241,30000,0,Active Communities Fund,291400,Arts & Leisure Services Sport & Fitness
South Lakeland District Council,http://opendatacommunities.org/id/district-council/south-lakeland,31/08/2017,Business Support Community Services,Cultural Environmental Regulatory & Planning Services,http://opendatacommunities.org/def/concept/finance/sercop/objective/104,FMG CONSULTING LTD,7309324,14/08/2017,70456,1600,0,'Additional business planning work on,151900,Consultancy Management
South Lakeland District Council,http://opendatacommunities.org/id/district-council/south-lakeland,31/08/2017,Human Resources,Housing Services,http://opendatacommunities.org/def/concept/finance/sercop/objective/108,OCEAN MEDIA GROUP LTD,1680420,23/08/2017,70689,695,0,affordable housing advert,191000,Facilities Advertising
South Lakeland District Council,http://opendatacommunities.org/id/district-council/south-lakeland,31/08/2017,Development Implementation,Central Services,http://opendatacommunities.org/def/concept/finance/sercop/objective/102,COX & ALLEN (KENDAL) LTD,1611371,23/08/2017,70691,12139.15,0,"Age Concern Building Refurbishment,",391110,Construction Buildings Construction
South Lakeland District Council,http://opendatacommunities.org/id/district-council/south-lakeland,31/08/2017,Kendal Town Hall,Highways & Transport Services,http://opendatacommunities.org/def/concept/finance/sercop/objective/107,ADECCO UK LIMITED,593232,07/08/2017,70058,270.82,0,Agency cover for WMMSCP cleaner,261400,HR Temporary & Agency Staff
South Lakeland District Council,http://opendatacommunities.org/id/district-council/south-lakeland,31/08/2017,Business Support Community Services,Internal Trading Accounts,,ADECCO UK LIMITED,593232,02/08/2017,70085,52.56,0,Agency staff 2017/18,261400,HR Temporary & Agency Staff
South Lakeland District Council,http://opendatacommunities.org/id/district-council/south-lakeland,31/08/2017,Business Support Community Services,Internal Trading Accounts,,ADECCO UK LIMITED,593232,02/08/2017,70088,486.18,0,Agency staff 2017/18,261400,HR Temporary & Agency Staff
South Lakeland District Council,http://opendatacommunities.org/id/district-council/south-lakeland,31/08/2017,Business Support Community Services,Internal Trading Accounts,,ADECCO UK LIMITED,593232,02/08/2017,70153,328.5,0,Agency staff 2017/18,261400,HR Temporary & Agency Staff
South Lakeland District Council,http://opendatacommunities.org/id/district-council/south-lakeland,31/08/2017,Business Support Community Services,Internal Trading Accounts,,ADECCO UK LIMITED,593232,02/08/2017,70154,98.55,0,Agency staff 2017/18,261400,HR Temporary & Agency Staff
South Lakeland District Council,http://opendatacommunities.org/id/district-council/south-lakeland,31/08/2017,Business Support Community Services,Internal Trading Accounts,,ADECCO UK LIMITED,593232,02/08/2017,70155,151.11,0,Agency staff 2017/18,261400,HR Temporary & Agency Staff
South Lakeland District Council,http://opendatacommunities.org/id/district-council/south-lakeland,31/08/2017,Business Support Community Services,Internal Trading Accounts,,ADECCO UK LIMITED,593232,02/08/2017,70156,486.18,0,Agency staff 2017/18,261400,HR Temporary & Agency Staff
South Lakeland District Council,http://opendatacommunities.org/id/district-council/south-lakeland,31/08/2017,Business Support Community Services,Internal Trading Accounts,,ADECCO UK LIMITED,593232,21/08/2017,70653,52.56,0,Agency staff 2017/18,261400,HR Temporary & Agency Staff
South Lakeland District Council,http://opendatacommunities.org/id/district-council/south-lakeland,31/08/2017,Business Support Community Services,Internal Trading Accounts,,ADECCO UK LIMITED,593232,30/08/2017,70794,52.56,0,Agency staff 2017/18,261400,HR Temporary & Agency Staff
South Lakeland District Council,http://opendatacommunities.org/id/district-council/south-lakeland,31/08/2017,Business Support Community Services,Internal Trading Accounts,,Masterstaff Limited,2777593,23/08/2017,69974,3203.8,0,Agency staff 2017/18,261300,HR Recruitment & Assessment
South Lakeland District Council,http://opendatacommunities.org/id/district-council/south-lakeland,31/08/2017,Business Support Community Services,Internal Trading Accounts,,Masterstaff Limited,2777593,07/08/2017,70274,3904.92,0,Agency staff 2017/18,261300,HR Recruitment & Assessment
South Lakeland District Council,http://opendatacommunities.org/id/district-council/south-lakeland,31/08/2017,Business Support Community Services,Internal Trading Accounts,,Masterstaff Limited,2777593,07/08/2017,70275,183.3,0,Agency staff 2017/18,261300,HR Recruitment & Assessment
South Lakeland District Council,http://opendatacommunities.org/id/district-council/south-lakeland,31/08/2017,Business Support Community Services,Internal Trading Accounts,,Masterstaff Limited,2777593,07/08/2017,70281,2963.46,0,Agency staff 2017/18,261300,HR Recruitment & Assessment
South Lakeland District Council,http://opendatacommunities.org/id/district-council/south-lakeland,31/08/2017,Business Support Community Services,Internal Trading Accounts,,Masterstaff Limited,2777593,14/08/2017,70484,3367.18,0,Agency staff 2017/18,261300,HR Recruitment & Assessment
South Lakeland District Council,http://opendatacommunities.org/id/district-council/south-lakeland,31/08/2017,Business Support Community Services,Internal Trading Accounts,,Masterstaff Limited,2777593,23/08/2017,70660,4028.14,0,Agency staff 2017/18,261300,HR Recruitment & Assessment
South Lakeland District Council,http://opendatacommunities.org/id/district-council/south-lakeland,31/08/2017,Business Support Community Services,Internal Trading Accounts,,Masterstaff Limited,2777593,30/08/2017,70792,5816.32,0,Agency staff 2017/18,261300,HR Recruitment & Assessment
South Lakeland District Council,http://opendatacommunities.org/id/district-council/south-lakeland,31/08/2017,Business Support Community Services,Housing Services,http://opendatacommunities.org/def/concept/finance/sercop/objective/108,Ashberry Recruitment,7202591,23/08/2017,70236,114.75,0,"Agency temp, supprort worker at TVF",261300,HR Recruitment & Assessment
South Lakeland District Council,http://opendatacommunities.org/id/district-council/south-lakeland,31/08/2017,Business Support Community Services,Housing Services,http://opendatacommunities.org/def/concept/finance/sercop/objective/108,Ashberry Recruitment,7202591,14/08/2017,70329,35,0,"Agency temp, supprort worker at TVF",261300,HR Recruitment & Assessment
South Lakeland District Council,http://opendatacommunities.org/id/district-council/south-lakeland,31/08/2017,Business Support Community Services,Housing Services,http://opendatacommunities.org/def/concept/finance/sercop/objective/108,Ashberry Recruitment,7202591,16/08/2017,70535,152.06,0,"Agency temp, supprort worker at TVF",261300,HR Recruitment & Assessment
South Lakeland District Council,http://opendatacommunities.org/id/district-council/south-lakeland,31/08/2017,Business Support Community Services,Housing Services,http://opendatacommunities.org/def/concept/finance/sercop/objective/108,Ashberry Recruitment,7202591,30/08/2017,70692,257.79,0,"Agency temp, supprort worker at TVF",261300,HR Recruitment & Assessment
South Lakeland District Council,http://opendatacommunities.org/id/district-council/south-lakeland,31/08/2017,Environment and Housing,Housing Services,http://opendatacommunities.org/def/concept/finance/sercop/objective/108,ADECCO UK LIMITED,593232,07/08/2017,70055,423.99,0,Agency worker - ,261400,HR Temporary & Agency Staff
South Lakeland District Council,http://opendatacommunities.org/id/district-council/south-lakeland,31/08/2017,Environment and Housing,Housing Services,http://opendatacommunities.org/def/concept/finance/sercop/objective/108,ADECCO UK LIMITED,593232,02/08/2017,70121,410.53,0,Agency worker - ,261400,HR Temporary & Agency Staff
South Lakeland District Council,http://opendatacommunities.org/id/district-council/south-lakeland,31/08/2017,Business Support Community Services,Internal Trading Accounts,,PENNINGTONS (KENDAL) LIMITED,434649,14/08/2017,70502,2000,0,Annual Charge for use of Link Road at,182013,Environment Waste Mgt Waste Collection
South Lakeland District Council,http://opendatacommunities.org/id/district-council/south-lakeland,31/08/2017,Kendal Town Hall,Cultural Environmental Regulatory & Planning Services,http://opendatacommunities.org/def/concept/finance/sercop/objective/104,PHS GROUP PLC,,09/08/2017,70342,132.6,0,Annual duty of care certificate and,131312,Cleaning & Janitorial Washroom Sanitat
South Lakeland District Council,http://opendatacommunities.org/id/district-council/south-lakeland,31/08/2017,Kendal Town Hall,Cultural Environmental Regulatory & Planning Services,http://opendatacommunities.org/def/concept/finance/sercop/objective/104,PHS GROUP PLC,,09/08/2017,70343,361.4,0,Annual duty of care certificate and,131312,Cleaning & Janitorial Washroom Sanitat
South Lakeland District Council,http://opendatacommunities.org/id/district-council/south-lakeland,31/08/2017,Development Implementation,Central Services,http://opendatacommunities.org/def/concept/finance/sercop/objective/102,DOTTED EYES,6543990,02/08/2017,69868,396,0,Annual Renewal Map Info (324) &,261500,HR Training & Conferences
South Lakeland District Council,http://opendatacommunities.org/id/district-council/south-lakeland,31/08/2017,Social Enterprise Admin,Cultural Environmental Regulatory & Planning Services,http://opendatacommunities.org/def/concept/finance/sercop/objective/104,LAMBERT SMITH HAMPTON GROUP,2521225,07/08/2017,70216,775,0,APPRAISALS FOR PLANNING DEPARTMENT,999999,Unclassifiable
South Lakeland District Council,http://opendatacommunities.org/id/district-council/south-lakeland,31/08/2017,Business Support Community Services,Cultural Environmental Regulatory & Planning Services,http://opendatacommunities.org/def/concept/finance/sercop/objective/104,BOWNESS THEATRE FESTIVAL LTD,4168289,09/08/2017,70338,1750,0,Arts and Events funding 2017/18.,291300,Arts & Leisure Services Performing Arts
South Lakeland District Council,http://opendatacommunities.org/id/district-council/south-lakeland,31/08/2017,Business Support Community Services,Cultural Environmental Regulatory & Planning Services,http://opendatacommunities.org/def/concept/finance/sercop/objective/104,Lakeland Sinfonia Concert Society,,02/08/2017,70169,3500,0,Arts and Events funding 2017/18.,201700,Financial Services Grants
South Lakeland District Council,http://opendatacommunities.org/id/district-council/south-lakeland,31/08/2017,Business Support Community Services,Cultural Environmental Regulatory & Planning Services,http://opendatacommunities.org/def/concept/finance/sercop/objective/104,Ulverston Lantern Festival,,14/08/2017,70488,500,0,Arts and Events funding 2017/18.,201700,Financial Services Grants
South Lakeland District Council,http://opendatacommunities.org/id/district-council/south-lakeland,31/08/2017,Business Support Community Services,Cultural Environmental Regulatory & Planning Services,http://opendatacommunities.org/def/concept/finance/sercop/objective/104,ULVERSTON MUSIC FESTIVAL LTD,4930256,30/08/2017,70735,1500,0,Arts and Events funding 2017/18.,291300,Arts & Leisure Services Performing Arts
South Lakeland District Council,http://opendatacommunities.org/id/district-council/south-lakeland,31/08/2017,Business Support Community Services,Cultural Environmental Regulatory & Planning Services,http://opendatacommunities.org/def/concept/finance/sercop/objective/104,WESTMORLAND ORCHESTRA,,21/08/2017,70609,500,0,Arts and Events funding 2017/18.,291300,Arts & Leisure Services Performing Arts
South Lakeland District Council,http://opendatacommunities.org/id/district-council/south-lakeland,31/08/2017,Social Enterprise Admin,Cultural Environmental Regulatory & Planning Services,http://opendatacommunities.org/def/concept/finance/sercop/objective/104,HAGS-SMP Ltd,908021,07/08/2017,70234,1917.15,0,As per quote 16 June tender,331000,Sports Playground Equipment
South Lakeland District Council,http://opendatacommunities.org/id/district-council/south-lakeland,31/08/2017,Social Enterprise Admin,Culture and Related Serv,http://opendatacommunities.org/def/concept/finance/sercop/objective/104,HAGS-SMP Ltd,908021,07/08/2017,70234,79561.55,0,As per quote 16 June tender,331000,Sports Playground Equipment
South Lakeland District Council,http://opendatacommunities.org/id/district-council/south-lakeland,31/08/2017,Development Strategy,Cultural Environmental Regulatory & Planning Services,http://opendatacommunities.org/def/concept/finance/sercop/objective/104,Bloom Procurement Services Ltd,,14/08/2017,70421,13191.6,0,Aspinall Verdi to undertake the,151900,Consultancy Management
South Lakeland District Council,http://opendatacommunities.org/id/district-council/south-lakeland,31/08/2017,Leisure and Wellbeing,Highways & Transport Services,http://opendatacommunities.org/def/concept/finance/sercop/objective/107,SOUTH LAKES TREE SURGEONS & LANDSCAPES,5342745,07/08/2017,70209,680,0,"Berners Car Park, Grange over Sands",241210,Horticultural Tree Trimming
South Lakeland District Council,http://opendatacommunities.org/id/district-council/south-lakeland,31/08/2017,Business Support Community Services,Internal Trading Accounts,,RPC BPI RECYCLED PRODUCTS,350729,30/08/2017,70751,5737.54,0,Black liners - 455x785x990 50/F 400/PK,182013,Environment Waste Mgt Waste Collection
South Lakeland District Council,http://opendatacommunities.org/id/district-council/south-lakeland,31/08/2017,Business Support Community Services,Internal Trading Accounts,,EK MOTOR FACTORS LTD,838524,09/08/2017,70309,15.43,0,Blade,381400,Vehicle Mgt Maintenance
South Lakeland District Council,http://opendatacommunities.org/id/district-council/south-lakeland,31/08/2017,Business Support Community Services,Internal Trading Accounts,,EK MOTOR FACTORS LTD,838524,09/08/2017,70310,2.14,0,Blade,381400,Vehicle Mgt Maintenance
South Lakeland District Council,http://opendatacommunities.org/id/district-council/south-lakeland,31/08/2017,Business Support Community Services,Internal Trading Accounts,,EK MOTOR FACTORS LTD,838524,09/08/2017,70312,51.76,0,Blade,381400,Vehicle Mgt Maintenance
South Lakeland District Council,http://opendatacommunities.org/id/district-council/south-lakeland,31/08/2017,Business Support Community Services,Internal Trading Accounts,,EK MOTOR FACTORS LTD,838524,09/08/2017,70313,19.09,0,Blade,381400,Vehicle Mgt Maintenance
South Lakeland District Council,http://opendatacommunities.org/id/district-council/south-lakeland,31/08/2017,Business Support Community Services,Internal Trading Accounts,,EK MOTOR FACTORS LTD,838524,09/08/2017,70316,46.7,0,Blade,381400,Vehicle Mgt Maintenance
South Lakeland District Council,http://opendatacommunities.org/id/district-council/south-lakeland,31/08/2017,Business Support Community Services,Internal Trading Accounts,,EK MOTOR FACTORS LTD,838524,09/08/2017,70317,4.7,0,Blade,381400,Vehicle Mgt Maintenance
South Lakeland District Council,http://opendatacommunities.org/id/district-council/south-lakeland,31/08/2017,Business Support Community Services,Internal Trading Accounts,,EK MOTOR FACTORS LTD,838524,09/08/2017,70318,37.7,0,Blade,381400,Vehicle Mgt Maintenance
South Lakeland District Council,http://opendatacommunities.org/id/district-council/south-lakeland,31/08/2017,Business Support Community Services,Internal Trading Accounts,,EK MOTOR FACTORS LTD,838524,09/08/2017,70319,46.86,0,Blade,381400,Vehicle Mgt Maintenance
South Lakeland District Council,http://opendatacommunities.org/id/district-council/south-lakeland,31/08/2017,Business Support Community Services,Internal Trading Accounts,,EK MOTOR FACTORS LTD,838524,09/08/2017,70321,27.03,0,Blade,381400,Vehicle Mgt Maintenance
South Lakeland District Council,http://opendatacommunities.org/id/district-council/south-lakeland,31/08/2017,Business Support Community Services,Internal Trading Accounts,,EK MOTOR FACTORS LTD,838524,14/08/2017,70475,70,0,Blade,381400,Vehicle Mgt Maintenance
South Lakeland District Council,http://opendatacommunities.org/id/district-council/south-lakeland,31/08/2017,Business Support Community Services,Internal Trading Accounts,,EK MOTOR FACTORS LTD,838524,14/08/2017,70482,51.51,0,Blade,381400,Vehicle Mgt Maintenance
South Lakeland District Council,http://opendatacommunities.org/id/district-council/south-lakeland,31/08/2017,Kendal Town Hall,Highways & Transport Services,http://opendatacommunities.org/def/concept/finance/sercop/objective/107,BEMROSE BOOTH PARAGON LTD,4891375,09/08/2017,70330,151.5,0,Blank tickets,191600,Facilities Printing
South Lakeland District Council,http://opendatacommunities.org/id/district-council/south-lakeland,31/08/2017,Business Support Community Services,Internal Trading Accounts,,SOLWAY DAF,1393710,21/08/2017,70084,163.34,0,Block,381000,Vehicle Mgt Commercial
South Lakeland District Council,http://opendatacommunities.org/id/district-council/south-lakeland,31/08/2017,Business Support Community Services,Internal Trading Accounts,,SOLWAY DAF,1393710,21/08/2017,70100,30.45,0,Block,381000,Vehicle Mgt Commercial
South Lakeland District Council,http://opendatacommunities.org/id/district-council/south-lakeland,31/08/2017,Business Support Community Services,Internal Trading Accounts,,SOLWAY DAF,1393710,21/08/2017,70102,20.39,0,Block,381000,Vehicle Mgt Commercial
South Lakeland District Council,http://opendatacommunities.org/id/district-council/south-lakeland,31/08/2017,Business Support Community Services,Internal Trading Accounts,,SOLWAY DAF,1393710,21/08/2017,70619,43.29,0,Block,381000,Vehicle Mgt Commercial
South Lakeland District Council,http://opendatacommunities.org/id/district-council/south-lakeland,31/08/2017,Business Support Community Services,Internal Trading Accounts,,SOLWAY DAF,1393710,21/08/2017,70620,300.01,0,Block,381000,Vehicle Mgt Commercial
South Lakeland District Council,http://opendatacommunities.org/id/district-council/south-lakeland,31/08/2017,Business Support Community Services,Internal Trading Accounts,,SOLWAY DAF,1393710,21/08/2017,70621,58.98,0,Block,381000,Vehicle Mgt Commercial
South Lakeland District Council,http://opendatacommunities.org/id/district-council/south-lakeland,31/08/2017,Business Support Community Services,Internal Trading Accounts,,SOLWAY DAF,1393710,21/08/2017,70622,29.49,0,Block,381000,Vehicle Mgt Commercial
South Lakeland District Council,http://opendatacommunities.org/id/district-council/south-lakeland,31/08/2017,Business Support Community Services,Internal Trading Accounts,,SOLWAY DAF,1393710,21/08/2017,70623,67.53,0,Block,381000,Vehicle Mgt Commercial
South Lakeland District Council,http://opendatacommunities.org/id/district-council/south-lakeland,31/08/2017,Business Support Community Services,Internal Trading Accounts,,SOLWAY DAF,1393710,21/08/2017,70625,50.46,0,Block,381000,Vehicle Mgt Commercial
South Lakeland District Council,http://opendatacommunities.org/id/district-council/south-lakeland,31/08/2017,Business Support Community Services,Internal Trading Accounts,,SOLWAY DAF,1393710,21/08/2017,70627,171.66,0,Block,381000,Vehicle Mgt Commercial
South Lakeland District Council,http://opendatacommunities.org/id/district-council/south-lakeland,31/08/2017,Business Support Community Services,Internal Trading Accounts,,SOLWAY DAF,1393710,21/08/2017,70649,30.69,0,Block,381000,Vehicle Mgt Commercial
South Lakeland District Council,http://opendatacommunities.org/id/district-council/south-lakeland,31/08/2017,Business Support Community Services,Internal Trading Accounts,,SOLWAY DAF,1393710,21/08/2017,70650,23.62,0,Block,381000,Vehicle Mgt Commercial
South Lakeland District Council,http://opendatacommunities.org/id/district-council/south-lakeland,31/08/2017,Business Support Community Services,Internal Trading Accounts,,HYDRAIR TRUCK & TRAILER PARTS LTD,,09/08/2017,70328,79.6,0,Blocks,381500,Vehicle Mgt Parts
South Lakeland District Council,http://opendatacommunities.org/id/district-council/south-lakeland,31/08/2017,Business Support Community Services,Housing Services,http://opendatacommunities.org/def/concept/finance/sercop/objective/108,MILNTHORPE KENNELS & CATTERY,8932302,30/08/2017,70810,275,0,Boarding for 1x dog,181500,Environment Animal Services
South Lakeland District Council,http://opendatacommunities.org/id/district-council/south-lakeland,31/08/2017,Development Implementation,Central Services,http://opendatacommunities.org/def/concept/finance/sercop/objective/102,MARGARET BARROW INTERIORS LTD T/A MBI,,23/08/2017,70471,1600,0,Boat Shaped Conference Table @ 610 plus,211200,Furniture & Soft Furn Office Furniture
South Lakeland District Council,http://opendatacommunities.org/id/district-council/south-lakeland,31/08/2017,Human Resources,Cultural Environmental Regulatory & Planning Services,http://opendatacommunities.org/def/concept/finance/sercop/objective/104,The Coniston Institute,,21/08/2017,70011,32.5,0,Booking of Coniston Institute for High,192110,Facilities Room Hire
South Lakeland District Council,http://opendatacommunities.org/id/district-council/south-lakeland,31/08/2017,Business Support Community Services,Internal Trading Accounts,,HYDRAIR TRUCK & TRAILER PARTS LTD,,09/08/2017,70292,46.32,0,Brake pads,381500,Vehicle Mgt Parts
South Lakeland District Council,http://opendatacommunities.org/id/district-council/south-lakeland,31/08/2017,Development Management,Cultural Environmental Regulatory & Planning Services,http://opendatacommunities.org/def/concept/finance/sercop/objective/104,BSI (MEMBERSHIP),,14/08/2017,70383,492.5,0,BSI Subscribing Membership,202100,Financial Services Subscriptions
South Lakeland District Council,http://opendatacommunities.org/id/district-council/south-lakeland,31/08/2017,Development Management,Cultural Environmental Regulatory & Planning Services,http://opendatacommunities.org/def/concept/finance/sercop/objective/104,BSI (MEMBERSHIP),,14/08/2017,70383,295.5,0,BSI Subscribing Membership,202100,Financial Services Subscriptions
South Lakeland District Council,http://opendatacommunities.org/id/district-council/south-lakeland,31/08/2017,Democratic and Member Services,Central Services,http://opendatacommunities.org/def/concept/finance/sercop/objective/102,RIVERBANK HOSPITALITY CATERING,,14/08/2017,70536,29.7,0,buffet for Member Audit training,111000,Catering Banquet & Catering
South Lakeland District Council,http://opendatacommunities.org/id/district-council/south-lakeland,31/08/2017,Business Support Community Services,Internal Trading Accounts,,RIBBLESDALE AUTO ELECTRICS 1992 LTD,2732686,23/08/2017,70709,18.59,0,Bulbs,381500,Vehicle Mgt Parts
South Lakeland District Council,http://opendatacommunities.org/id/district-council/south-lakeland,31/08/2017,Business Support Community Services,Internal Trading Accounts,,RIBBLESDALE AUTO ELECTRICS 1992 LTD,2732686,23/08/2017,70710,8.52,0,Bulbs,381500,Vehicle Mgt Parts
South Lakeland District Council,http://opendatacommunities.org/id/district-council/south-lakeland,31/08/2017,Business Support Community Services,Internal Trading Accounts,,RIBBLESDALE AUTO ELECTRICS 1992 LTD,2732686,23/08/2017,70711,50,0,Bulbs,381500,Vehicle Mgt Parts
South Lakeland District Council,http://opendatacommunities.org/id/district-council/south-lakeland,31/08/2017,Business Support Community Services,Internal Trading Accounts,,RIBBLESDALE AUTO ELECTRICS 1992 LTD,2732686,23/08/2017,70712,144,0,Bulbs,381500,Vehicle Mgt Parts
South Lakeland District Council,http://opendatacommunities.org/id/district-council/south-lakeland,31/08/2017,Customer Services,Cultural Environmental Regulatory & Planning Services,http://opendatacommunities.org/def/concept/finance/sercop/objective/104,RIGHT 2 WORK,,21/08/2017,70454,4123,0,bulky items collected,321010,Social Care Adult Advice & Counselling
South Lakeland District Council,http://opendatacommunities.org/id/district-council/south-lakeland,31/08/2017,Business Support Community Services,Internal Trading Accounts,,DENNIS EAGLE LTD,3794455,16/08/2017,70314,144.8,0,Bushes,381300,Vehicle Mgt Industrial
South Lakeland District Council,http://opendatacommunities.org/id/district-council/south-lakeland,31/08/2017,Business Support Community Services,Internal Trading Accounts,,DENNIS EAGLE LTD,3794455,16/08/2017,70315,34.66,0,Bushes,381300,Vehicle Mgt Industrial
South Lakeland District Council,http://opendatacommunities.org/id/district-council/south-lakeland,31/08/2017,Business Support Community Services,Internal Trading Accounts,,DENNIS EAGLE LTD,3794455,16/08/2017,70320,48.72,0,Bushes,381300,Vehicle Mgt Industrial
South Lakeland District Council,http://opendatacommunities.org/id/district-council/south-lakeland,31/08/2017,Business Support Community Services,Internal Trading Accounts,,DENNIS EAGLE LTD,3794455,16/08/2017,70322,233.81,0,Bushes,381300,Vehicle Mgt Industrial
South Lakeland District Council,http://opendatacommunities.org/id/district-council/south-lakeland,31/08/2017,Business Support Community Services,Internal Trading Accounts,,DENNIS EAGLE LTD,3794455,16/08/2017,70323,32.34,0,Bushes,381300,Vehicle Mgt Industrial
South Lakeland District Council,http://opendatacommunities.org/id/district-council/south-lakeland,31/08/2017,Business Support Community Services,Internal Trading Accounts,,DENNIS EAGLE LTD,3794455,21/08/2017,70631,248.84,0,Bushes,381300,Vehicle Mgt Industrial
South Lakeland District Council,http://opendatacommunities.org/id/district-council/south-lakeland,31/08/2017,Business Support Community Services,Internal Trading Accounts,,TAYLOR ENGINEERING & FABRICATIONS LTD,4989359,07/08/2017,70249,388.74,0,Bushes,391200,Construction Engineering
South Lakeland District Council,http://opendatacommunities.org/id/district-council/south-lakeland,31/08/2017,Financial Services,Central Services,http://opendatacommunities.org/def/concept/finance/sercop/objective/102,BUSY BEES BENEFITS LTD,6758298,07/08/2017,70238,37.13,0,Busy Bees child care voucher service,202100,Financial Services Subscriptions
South Lakeland District Council,http://opendatacommunities.org/id/district-council/south-lakeland,31/08/2017,Financial Services,Non-Service Payments,,BUSY BEES BENEFITS LTD,6758298,07/08/2017,70239,1061,0,Busy Bees child care vouchers. based on,202100,Financial Services Subscriptions
South Lakeland District Council,http://opendatacommunities.org/id/district-council/south-lakeland,31/08/2017,Business Support Community Services,Internal Trading Accounts,,GARWOOD EUROPE LTD,4333504,23/08/2017,70727,130.62,0,Button covers,182011,Environment Waste Management Consumables
South Lakeland District Council,http://opendatacommunities.org/id/district-council/south-lakeland,31/08/2017,Business Support Community Services,Cultural Environmental Regulatory & Planning Services,http://opendatacommunities.org/def/concept/finance/sercop/objective/104,UNIVERSITY OF SALFORD,RC000666,23/08/2017,70578,35,0,Calibration of 2250M,181900,Environment Testing & Inspection
South Lakeland District Council,http://opendatacommunities.org/id/district-council/south-lakeland,31/08/2017,Business Support Community Services,Internal Trading Accounts,,AINSWORTH'S GARAGE,,02/08/2017,70101,110,0,Call out,381400,Vehicle Mgt Maintenance
South Lakeland District Council,http://opendatacommunities.org/id/district-council/south-lakeland,31/08/2017,Business Support Community Services,Internal Trading Accounts,,AINSWORTH'S GARAGE,,09/08/2017,70257,55,0,Call out,381400,Vehicle Mgt Maintenance
South Lakeland District Council,http://opendatacommunities.org/id/district-council/south-lakeland,31/08/2017,Kendal Town Hall,Cultural Environmental Regulatory & Planning Services,http://opendatacommunities.org/def/concept/finance/sercop/objective/104,TRUVOX INTERNATIONAL LIMITED,731273,14/08/2017,70130,183.29,0,Call out to repair orbis rotary floor,130000,Cleanine & Janitorial
South Lakeland District Council,http://opendatacommunities.org/id/district-council/south-lakeland,31/08/2017,Business Support Community Services,Internal Trading Accounts,,SOLWAY DAF,1393710,09/08/2017,70291,43.29,0,Cap,381000,Vehicle Mgt Commercial
South Lakeland District Council,http://opendatacommunities.org/id/district-council/south-lakeland,31/08/2017,Business Support Community Services,Internal Trading Accounts,,DENNIS EAGLE LTD,3794455,14/08/2017,70478,260.1,0,Caps,381300,Vehicle Mgt Industrial
South Lakeland District Council,http://opendatacommunities.org/id/district-council/south-lakeland,31/08/2017,Business Support Community Services,Internal Trading Accounts,,DENNIS EAGLE LTD,3794455,23/08/2017,70701,86.76,0,Caps,381300,Vehicle Mgt Industrial
South Lakeland District Council,http://opendatacommunities.org/id/district-council/south-lakeland,31/08/2017,Business Support Community Services,Internal Trading Accounts,,NORTHGATE VEHICLE HIRE LTD,1434157,23/08/2017,70160,46.4,0,Car hire - 24/7 to 26/7,381600,Vehicle Mgt Leasing
South Lakeland District Council,http://opendatacommunities.org/id/district-council/south-lakeland,31/08/2017,Policy & Partnerships,Central Services,http://opendatacommunities.org/def/concept/finance/sercop/objective/102,NORTHGATE VEHICLE HIRE LTD,1434157,07/08/2017,70196,108.8,0,Car hire for Eastbourne Council trip,381600,Vehicle Mgt Leasing
South Lakeland District Council,http://opendatacommunities.org/id/district-council/south-lakeland,31/08/2017,Policy & Partnerships,Central Services,http://opendatacommunities.org/def/concept/finance/sercop/objective/102,NORTHGATE VEHICLE HIRE LTD,1434157,30/08/2017,70741,30.28,0,Car Hire for meetings 1-2 June.,381600,Vehicle Mgt Leasing
South Lakeland District Council,http://opendatacommunities.org/id/district-council/south-lakeland,31/08/2017,Business Support Community Services,Cultural Environmental Regulatory & Planning Services,http://opendatacommunities.org/def/concept/finance/sercop/objective/104,NORTHGATE VEHICLE HIRE LTD,1434157,02/08/2017,70168,25,0,Car Hire. Travel to Leeds 25/07/2017,381600,Vehicle Mgt Leasing
South Lakeland District Council,http://opendatacommunities.org/id/district-council/south-lakeland,31/08/2017,Development Implementation,Transport,http://opendatacommunities.org/def/concept/finance/sercop/objective/107,LAMBERT SMITH HAMPTON GROUP,2521225,07/08/2017,70214,1750,0,Car Parks - Resurfacing Works,999999,Unclassifiable
South Lakeland District Council,http://opendatacommunities.org/id/district-council/south-lakeland,31/08/2017,Development Implementation,Transport,http://opendatacommunities.org/def/concept/finance/sercop/objective/107,LAMBERT SMITH HAMPTON GROUP,2521225,09/08/2017,70391,4525,0,Car Parks - Resurfacing Works,999999,Unclassifiable
South Lakeland District Council,http://opendatacommunities.org/id/district-council/south-lakeland,31/08/2017,Development Strategy,Cultural Environmental Regulatory & Planning Services,http://opendatacommunities.org/def/concept/finance/sercop/objective/104,RIVERBANK HOSPITALITY CATERING,,02/08/2017,70166,118.5,0,Catering for SHMAA workshop/briefing on,111000,Catering Banquet & Catering
South Lakeland District Council,http://opendatacommunities.org/id/district-council/south-lakeland,31/08/2017,Cemeteries Office,Cultural Environmental Regulatory & Planning Services,http://opendatacommunities.org/def/concept/finance/sercop/objective/104,CUMBRIA WASTE RECYCLING LTD,3162439,14/08/2017,70537,33.4,0,Cemetery Waste Bin Emptying 2017-18,182012,Environment Waste Management Recycling
South Lakeland District Council,http://opendatacommunities.org/id/district-council/south-lakeland,31/08/2017,Cemeteries Office,Cultural Environmental Regulatory & Planning Services,http://opendatacommunities.org/def/concept/finance/sercop/objective/104,CUMBRIA WASTE RECYCLING LTD,3162439,14/08/2017,70538,29,0,Cemetery Waste Bin Emptying 2017-18,182012,Environment Waste Management Recycling
South Lakeland District Council,http://opendatacommunities.org/id/district-council/south-lakeland,31/08/2017,Cemeteries Office,Cultural Environmental Regulatory & Planning Services,http://opendatacommunities.org/def/concept/finance/sercop/objective/104,CUMBRIA WASTE RECYCLING LTD,3162439,14/08/2017,70539,86.84,0,Cemetery Waste Bin Emptying 2017-18,182012,Environment Waste Management Recycling
South Lakeland District Council,http://opendatacommunities.org/id/district-council/south-lakeland,31/08/2017,Cemeteries Office,Cultural Environmental Regulatory & Planning Services,http://opendatacommunities.org/def/concept/finance/sercop/objective/104,CUMBRIA WASTE RECYCLING LTD,3162439,14/08/2017,70540,66.8,0,Cemetery Waste Bin Emptying 2017-18,182012,Environment Waste Management Recycling
South Lakeland District Council,http://opendatacommunities.org/id/district-council/south-lakeland,31/08/2017,Cemeteries Office,Cultural Environmental Regulatory & Planning Services,http://opendatacommunities.org/def/concept/finance/sercop/objective/104,CUMBRIA WASTE RECYCLING LTD,3162439,14/08/2017,70541,62.12,0,Cemetery Waste Bin Emptying 2017-18,182012,Environment Waste Management Recycling
South Lakeland District Council,http://opendatacommunities.org/id/district-council/south-lakeland,31/08/2017,Cemeteries Office,Cultural Environmental Regulatory & Planning Services,http://opendatacommunities.org/def/concept/finance/sercop/objective/104,CUMBRIA WASTE RECYCLING LTD,3162439,14/08/2017,70542,52.32,0,Cemetery Waste Bin Emptying 2017-18,182012,Environment Waste Management Recycling
South Lakeland District Council,http://opendatacommunities.org/id/district-council/south-lakeland,31/08/2017,Cemeteries Office,Cultural Environmental Regulatory & Planning Services,http://opendatacommunities.org/def/concept/finance/sercop/objective/104,CUMBRIA WASTE RECYCLING LTD,3162439,14/08/2017,70543,108.4,0,Cemetery Waste Bin Emptying 2017-18,182012,Environment Waste Management Recycling
South Lakeland District Council,http://opendatacommunities.org/id/district-council/south-lakeland,31/08/2017,Development Implementation,Central Services,http://opendatacommunities.org/def/concept/finance/sercop/objective/102,MARGARET BARROW INTERIORS LTD T/A MBI,,02/08/2017,69845,1035,0,Chairs for SLDC: 3 x T114 @ 165 each &,211200,Furniture & Soft Furn Office Furniture
South Lakeland District Council,http://opendatacommunities.org/id/district-council/south-lakeland,31/08/2017,Business Support Community Services,Internal Trading Accounts,,AINSWORTH'S GARAGE,,07/08/2017,70253,29.25,0,Change wheels,381400,Vehicle Mgt Maintenance
South Lakeland District Council,http://opendatacommunities.org/id/district-council/south-lakeland,31/08/2017,Development Management,Cultural Environmental Regulatory & Planning Services,http://opendatacommunities.org/def/concept/finance/sercop/objective/104,CHRIS BOWKER LTD,1642561,07/08/2017,70204,30,0,Checking of electrical,101100,Building Electrical
South Lakeland District Council,http://opendatacommunities.org/id/district-council/south-lakeland,31/08/2017,Development Implementation,Central Services,http://opendatacommunities.org/def/concept/finance/sercop/objective/102,ADECCO UK LIMITED,593232,02/08/2017,69822,36.78,0,Cleaner for SLDC - ( April,261400,HR Temporary & Agency Staff
South Lakeland District Council,http://opendatacommunities.org/id/district-council/south-lakeland,31/08/2017,Development Implementation,Central Services,http://opendatacommunities.org/def/concept/finance/sercop/objective/102,ADECCO UK LIMITED,593232,02/08/2017,70056,183.9,0,Cleaner for SLDC - ( April,261400,HR Temporary & Agency Staff
South Lakeland District Council,http://opendatacommunities.org/id/district-council/south-lakeland,31/08/2017,Development Implementation,Central Services,http://opendatacommunities.org/def/concept/finance/sercop/objective/102,ADECCO UK LIMITED,593232,02/08/2017,70122,110.34,0,Cleaner for SLDC - ( April,261400,HR Temporary & Agency Staff
South Lakeland District Council,http://opendatacommunities.org/id/district-council/south-lakeland,31/08/2017,Development Implementation,Central Services,http://opendatacommunities.org/def/concept/finance/sercop/objective/102,ADECCO UK LIMITED,593232,23/08/2017,70532,42.91,0,Cleaner for SLDC - ( April,261400,HR Temporary & Agency Staff
South Lakeland District Council,http://opendatacommunities.org/id/district-council/south-lakeland,31/08/2017,Development Implementation,Central Services,http://opendatacommunities.org/def/concept/finance/sercop/objective/102,ADECCO UK LIMITED,593232,23/08/2017,70639,55.17,0,Cleaner for SLDC - ( April,261400,HR Temporary & Agency Staff
South Lakeland District Council,http://opendatacommunities.org/id/district-council/south-lakeland,31/08/2017,Development Implementation,Central Services,http://opendatacommunities.org/def/concept/finance/sercop/objective/102,ADECCO UK LIMITED,593232,02/08/2017,69823,73.92,0,Cleaner for SLDC - (6 hours per,261400,HR Temporary & Agency Staff
South Lakeland District Council,http://opendatacommunities.org/id/district-council/south-lakeland,31/08/2017,Development Implementation,Central Services,http://opendatacommunities.org/def/concept/finance/sercop/objective/102,ADECCO UK LIMITED,593232,02/08/2017,70057,73.92,0,Cleaner for SLDC - (6 hours per,261400,HR Temporary & Agency Staff
South Lakeland District Council,http://opendatacommunities.org/id/district-council/south-lakeland,31/08/2017,Development Implementation,Central Services,http://opendatacommunities.org/def/concept/finance/sercop/objective/102,ADECCO UK LIMITED,593232,02/08/2017,70123,73.92,0,Cleaner for SLDC - (6 hours per,261400,HR Temporary & Agency Staff
South Lakeland District Council,http://opendatacommunities.org/id/district-council/south-lakeland,31/08/2017,Development Implementation,Central Services,http://opendatacommunities.org/def/concept/finance/sercop/objective/102,ADECCO UK LIMITED,593232,23/08/2017,70533,49.28,0,Cleaner for SLDC - (6 hours per,261400,HR Temporary & Agency Staff
South Lakeland District Council,http://opendatacommunities.org/id/district-council/south-lakeland,31/08/2017,Business Support Community Services,Internal Trading Accounts,,ARCO LIMITED,133804,09/08/2017,68432,20.36,0,Cleaning materials,141100,Clothing Protective
South Lakeland District Council,http://opendatacommunities.org/id/district-council/south-lakeland,31/08/2017,Business Support Community Services,Central Services,http://opendatacommunities.org/def/concept/finance/sercop/objective/102,ARCO LIMITED,133804,02/08/2017,70079,85.65,0,Cleaning materials,141100,Clothing Protective
South Lakeland District Council,http://opendatacommunities.org/id/district-council/south-lakeland,31/08/2017,Business Support Community Services,Internal Trading Accounts,,ARCO LIMITED,133804,02/08/2017,70081,15.52,0,Cleaning materials,141100,Clothing Protective
South Lakeland District Council,http://opendatacommunities.org/id/district-council/south-lakeland,31/08/2017,Business Support Community Services,Internal Trading Accounts,,ARCO LIMITED,133804,02/08/2017,70150,53.29,0,Cleaning materials,141100,Clothing Protective
South Lakeland District Council,http://opendatacommunities.org/id/district-council/south-lakeland,31/08/2017,Business Support Community Services,Internal Trading Accounts,,ARCO LIMITED,133804,09/08/2017,70289,11.85,0,Cleaning materials,141100,Clothing Protective
South Lakeland District Council,http://opendatacommunities.org/id/district-council/south-lakeland,31/08/2017,Business Support Community Services,Internal Trading Accounts,,ARCO LIMITED,133804,09/08/2017,70289,238.21,0,Cleaning materials,141100,Clothing Protective
South Lakeland District Council,http://opendatacommunities.org/id/district-council/south-lakeland,31/08/2017,Business Support Community Services,Central Services,http://opendatacommunities.org/def/concept/finance/sercop/objective/102,ARCO LIMITED,133804,09/08/2017,70305,50.47,0,Cleaning materials,141100,Clothing Protective
South Lakeland District Council,http://opendatacommunities.org/id/district-council/south-lakeland,31/08/2017,Business Support Community Services,Internal Trading Accounts,,ARCO LIMITED,133804,09/08/2017,70358,195.72,0,Cleaning materials,141100,Clothing Protective
South Lakeland District Council,http://opendatacommunities.org/id/district-council/south-lakeland,31/08/2017,Business Support Community Services,Internal Trading Accounts,,ARCO LIMITED,133804,14/08/2017,70412,120.45,0,Cleaning materials,141100,Clothing Protective
South Lakeland District Council,http://opendatacommunities.org/id/district-council/south-lakeland,31/08/2017,Business Support Community Services,Transport Planning Policy,http://opendatacommunities.org/def/concept/finance/sercop/objective/107,ARCO LIMITED,133804,14/08/2017,70413,16.58,0,Cleaning materials,141100,Clothing Protective
South Lakeland District Council,http://opendatacommunities.org/id/district-council/south-lakeland,31/08/2017,Business Support Community Services,Transport Planning Policy,http://opendatacommunities.org/def/concept/finance/sercop/objective/107,ARCO LIMITED,133804,14/08/2017,70474,19.18,0,Cleaning materials,141100,Clothing Protective
South Lakeland District Council,http://opendatacommunities.org/id/district-council/south-lakeland,31/08/2017,Business Support Community Services,Internal Trading Accounts,,ARCO LIMITED,133804,14/08/2017,70483,8.46,0,Cleaning materials,141100,Clothing Protective
South Lakeland District Council,http://opendatacommunities.org/id/district-council/south-lakeland,31/08/2017,Business Support Community Services,Transport Planning Policy,http://opendatacommunities.org/def/concept/finance/sercop/objective/107,ARCO LIMITED,133804,21/08/2017,70606,35.97,0,Cleaning materials,141100,Clothing Protective
South Lakeland District Council,http://opendatacommunities.org/id/district-council/south-lakeland,31/08/2017,Business Support Community Services,Internal Trading Accounts,,ARCO LIMITED,133804,21/08/2017,70606,347.96,0,Cleaning materials,141100,Clothing Protective
South Lakeland District Council,http://opendatacommunities.org/id/district-council/south-lakeland,31/08/2017,Business Support Community Services,Internal Trading Accounts,,ARCO LIMITED,133804,21/08/2017,70651,136.15,0,Cleaning materials,141100,Clothing Protective
South Lakeland District Council,http://opendatacommunities.org/id/district-council/south-lakeland,31/08/2017,Business Support Community Services,Internal Trading Accounts,,ARCO LIMITED,133804,21/08/2017,70652,36.38,0,Cleaning materials,141100,Clothing Protective
South Lakeland District Council,http://opendatacommunities.org/id/district-council/south-lakeland,31/08/2017,Business Support Community Services,Transport Planning Policy,http://opendatacommunities.org/def/concept/finance/sercop/objective/107,ARCO LIMITED,133804,21/08/2017,70661,30.06,0,Cleaning materials,141100,Clothing Protective
South Lakeland District Council,http://opendatacommunities.org/id/district-council/south-lakeland,31/08/2017,Business Support Community Services,Internal Trading Accounts,,ARCO LIMITED,133804,21/08/2017,70661,11.15,0,Cleaning materials,141100,Clothing Protective
South Lakeland District Council,http://opendatacommunities.org/id/district-council/south-lakeland,31/08/2017,Business Support Community Services,Internal Trading Accounts,,ARCO LIMITED,133804,21/08/2017,70662,103.84,0,Cleaning materials,141100,Clothing Protective
South Lakeland District Council,http://opendatacommunities.org/id/district-council/south-lakeland,31/08/2017,Business Support Community Services,Housing Services,http://opendatacommunities.org/def/concept/finance/sercop/objective/108,My Dream Cleaners Ltd,9839482,07/08/2017,70208,210,0,Cleaning services,131320,Cleaning & Janitorial Cleaning Service
South Lakeland District Council,http://opendatacommunities.org/id/district-council/south-lakeland,31/08/2017,Business Support Community Services,Housing Services,http://opendatacommunities.org/def/concept/finance/sercop/objective/108,My Dream Cleaners Ltd,9839482,21/08/2017,70675,378,0,Cleaning services for Garden Mews,131320,Cleaning & Janitorial Cleaning Service
South Lakeland District Council,http://opendatacommunities.org/id/district-council/south-lakeland,31/08/2017,Business Support Community Services,Cultural Environmental Regulatory & Planning Services,http://opendatacommunities.org/def/concept/finance/sercop/objective/104,OCS GROUP LTD T/A CANNON HYGIENE LTD,1298292,07/08/2017,70279,2273.55,0,Clinical waste collections - 2017/18,131011,Cleaning & Janitorial Cleaning Materials
South Lakeland District Council,http://opendatacommunities.org/id/district-council/south-lakeland,31/08/2017,Business Support Community Services,Internal Trading Accounts,,AINSWORTH'S GARAGE,,07/08/2017,70254,55,0,COC,381400,Vehicle Mgt Maintenance
South Lakeland District Council,http://opendatacommunities.org/id/district-council/south-lakeland,31/08/2017,Business Support Community Services,Internal Trading Accounts,,AINSWORTH'S GARAGE,,07/08/2017,70255,29.25,0,COC,381400,Vehicle Mgt Maintenance
South Lakeland District Council,http://opendatacommunities.org/id/district-council/south-lakeland,31/08/2017,Business Support Community Services,Internal Trading Accounts,,AINSWORTH'S GARAGE,,09/08/2017,70276,29.25,0,COC,381400,Vehicle Mgt Maintenance
South Lakeland District Council,http://opendatacommunities.org/id/district-council/south-lakeland,31/08/2017,Business Support Community Services,Internal Trading Accounts,,AINSWORTH'S GARAGE,,02/08/2017,70104,29.25,0,COC turn,381400,Vehicle Mgt Maintenance
South Lakeland District Council,http://opendatacommunities.org/id/district-council/south-lakeland,31/08/2017,Business Support Community Services,Internal Trading Accounts,,AINSWORTH'S GARAGE,,09/08/2017,70256,29.25,0,COC turn,381400,Vehicle Mgt Maintenance
South Lakeland District Council,http://opendatacommunities.org/id/district-council/south-lakeland,31/08/2017,Business Support Community Services,Cultural Environmental Regulatory & Planning Services,http://opendatacommunities.org/def/concept/finance/sercop/objective/104,Public Health England,,30/08/2017,70629,239.4,0,Cockle Testing 060/f35 + f36/17,221100,Health & Safety� Maintenance
South Lakeland District Council,http://opendatacommunities.org/id/district-council/south-lakeland,31/08/2017,Revenues and Benefits,Non-Service Payments,,Ulverston BID Company Ltd,9761005,23/08/2017,70693,703.33,0,Collection figures for July 2017,201700,Financial Services Grants
South Lakeland District Council,http://opendatacommunities.org/id/district-council/south-lakeland,31/08/2017,Financial Services,Non-Service Payments,,COMPUTERSHARE VOUCHER SERVICES LTD,4968447,07/08/2017,70332,1375.93,0,Computershare child care vouchers. New,202100,Financial Services Subscriptions
South Lakeland District Council,http://opendatacommunities.org/id/district-council/south-lakeland,31/08/2017,Human Resources,Central Services,http://opendatacommunities.org/def/concept/finance/sercop/objective/102,Flourish Learning Ltd,9039910,21/08/2017,70228,500,0,consultation and preparation for,171010,Education Adult & Further Ed
South Lakeland District Council,http://opendatacommunities.org/id/district-council/south-lakeland,31/08/2017,Business Support Community Services,Internal Trading Accounts,,COMPASS COMPONENTS,,07/08/2017,70222,230.11,0,Consumables 01/04/17 - 31/03/18,101400,Building General Materials
South Lakeland District Council,http://opendatacommunities.org/id/district-council/south-lakeland,31/08/2017,Business Support Community Services,Internal Trading Accounts,,COMPASS COMPONENTS,,21/08/2017,70682,170.95,0,Consumables 01/04/17 - 31/03/18,101400,Building General Materials
South Lakeland District Council,http://opendatacommunities.org/id/district-council/south-lakeland,31/08/2017,Business Support Community Services,Internal Trading Accounts,,FST CONSUMABLES LTD,1342012,14/08/2017,70487,102.71,0,Consumables 01/04/17- 31/03/18,101600,Building Hand Tools
South Lakeland District Council,http://opendatacommunities.org/id/district-council/south-lakeland,31/08/2017,Policy & Partnerships,Cultural Environmental Regulatory & Planning Services,http://opendatacommunities.org/def/concept/finance/sercop/objective/104,Kirkby Lonsdale & Lune Valley Community,7708541,21/08/2017,70608,5000,0,Contribution for CIC move to the HSBC,201700,Financial Services Grants
South Lakeland District Council,http://opendatacommunities.org/id/district-council/south-lakeland,31/08/2017,Development Implementation,Cultural Environmental Regulatory & Planning Services,http://opendatacommunities.org/def/concept/finance/sercop/objective/104,YOUNG ENTERPRISE SOUTH CUMBRIA,,30/08/2017,70742,500,0,Contribution for Young Enterprise,201700,Financial Services Grants
South Lakeland District Council,http://opendatacommunities.org/id/district-council/south-lakeland,31/08/2017,Business Support Community Services,Cultural Environmental Regulatory & Planning Services,http://opendatacommunities.org/def/concept/finance/sercop/objective/104,Greenwich Leisure Ltd,,02/08/2017,70060,5000,0,"Contribution to ""Swim Safe""",291400,Arts & Leisure Services Sport & Fitness
South Lakeland District Council,http://opendatacommunities.org/id/district-council/south-lakeland,31/08/2017,Policy & Partnerships,Central Services,http://opendatacommunities.org/def/concept/finance/sercop/objective/102,WESTMORLAND COUNTY AGRICULTURAL SOCIETY,3146325,07/08/2017,70344,398,0,Cost of 'Our Place' policy away day on,261500,HR Training & Conferences
South Lakeland District Council,http://opendatacommunities.org/id/district-council/south-lakeland,31/08/2017,Business Support Community Services,Internal Trading Accounts,,FAUN ZOELLER (UK) LTD,751804,14/08/2017,70496,77.87,0,Cover,381400,Vehicle Mgt Maintenance
South Lakeland District Council,http://opendatacommunities.org/id/district-council/south-lakeland,31/08/2017,ICT Group,Central Services,http://opendatacommunities.org/def/concept/finance/sercop/objective/102,DAISY COMMUNICATIONS LTD,4145329,30/08/2017,70387,337.61,0,"Daisy Line Rental, various numbers,",271700,ICT Telecommunications Fixed
South Lakeland District Council,http://opendatacommunities.org/id/district-council/south-lakeland,31/08/2017,ICT Group,Central Services,http://opendatacommunities.org/def/concept/finance/sercop/objective/102,DAISY COMMUNICATIONS LTD,4145329,30/08/2017,70387,97.06,0,"Daisy Line Rental, various numbers,",271700,ICT Telecommunications Fixed
South Lakeland District Council,http://opendatacommunities.org/id/district-council/south-lakeland,31/08/2017,Business Support Community Services,SLDC as Agent,,CUMBRIA COUNTY COUNCIL,,09/08/2017,70184,162,0,DBS Checks for Taxi Drivers,908000,Public Bodies Council support services
South Lakeland District Council,http://opendatacommunities.org/id/district-council/south-lakeland,31/08/2017,Business Support Community Services,SLDC as Agent,,CUMBRIA COUNTY COUNCIL,,14/08/2017,70449,108,0,DBS Checks for Taxi Drivers,908000,Public Bodies Council support services
South Lakeland District Council,http://opendatacommunities.org/id/district-council/south-lakeland,31/08/2017,Business Support Community Services,SLDC as Agent,,CUMBRIA COUNTY COUNCIL,,23/08/2017,70463,54,0,DBS Checks for Taxi Drivers,908000,Public Bodies Council support services
South Lakeland District Council,http://opendatacommunities.org/id/district-council/south-lakeland,31/08/2017,Business Support Community Services,SLDC as Agent,,CUMBRIA COUNTY COUNCIL,,30/08/2017,70685,216,0,DBS Checks for Taxi Drivers,908000,Public Bodies Council support services
South Lakeland District Council,http://opendatacommunities.org/id/district-council/south-lakeland,31/08/2017,Business Support Community Services,SLDC as Agent,,CUMBRIA COUNTY COUNCIL,,23/08/2017,70686,54,0,DBS Checks for Taxi Drivers,908000,Public Bodies Council support services
South Lakeland District Council,http://opendatacommunities.org/id/district-council/south-lakeland,31/08/2017,Business Support Community Services,Housing Services,http://opendatacommunities.org/def/concept/finance/sercop/objective/108,Landlord,,21/08/2017,70673,1643.31,0,"Deposit for Prince of Wales Apartments,",202000,Financial Services Rents
South Lakeland District Council,http://opendatacommunities.org/id/district-council/south-lakeland,31/08/2017,Environment and Housing,Housing Services,http://opendatacommunities.org/def/concept/finance/sercop/objective/108,Throughstone Consulting,,21/08/2017,70630,350,0,Development Training on 9/8/17,250000,Housing
South Lakeland District Council,http://opendatacommunities.org/id/district-council/south-lakeland,31/08/2017,Democratic and Member Services,Central Services,http://opendatacommunities.org/def/concept/finance/sercop/objective/102,CUMBRIA COUNTY COUNCIL,,30/08/2017,70734,18,0,dispensation payment to block Boyes 3,908000,Public Bodies Council support services
South Lakeland District Council,http://opendatacommunities.org/id/district-council/south-lakeland,31/08/2017,Democratic and Member Services,Cultural Environmental Regulatory & Planning Services,http://opendatacommunities.org/def/concept/finance/sercop/objective/104,HOLME PARISH COUNCIL,,30/08/2017,70787,500,0,donation to fund the Parish Lengthsman,908000,Public Bodies Council support services
South Lakeland District Council,http://opendatacommunities.org/id/district-council/south-lakeland,31/08/2017,Development Implementation,Cultural Environmental Regulatory & Planning Services,http://opendatacommunities.org/def/concept/finance/sercop/objective/104,CUMBRIAN NEWSPAPERS LIMITED,2729,14/08/2017,70336,1400,0,Double page spread in August in-cumbria,191000,Facilities Advertising
South Lakeland District Council,http://opendatacommunities.org/id/district-council/south-lakeland,31/08/2017,Business Support Community Services,Housing Services,http://opendatacommunities.org/def/concept/finance/sercop/objective/108,Trown Housing Consultancy Ltd,9116635,23/08/2017,70718,6800,0,Draft manual - online homeless resource,151900,Consultancy Management
South Lakeland District Council,http://opendatacommunities.org/id/district-council/south-lakeland,31/08/2017,Social Enterprise Admin,Highways & Transport Services,http://opendatacommunities.org/def/concept/finance/sercop/objective/107,WSP UK Ltd,1383511,07/08/2017,70164,46.92,0,DVLA checks from 1 April 2017 to 31,351000,Street & Traffic Parking Car Parks
South Lakeland District Council,http://opendatacommunities.org/id/district-council/south-lakeland,31/08/2017,Leisure and Wellbeing,Cultural Environmental Regulatory & Planning Services,http://opendatacommunities.org/def/concept/finance/sercop/objective/104,SOUTH LAKES TREE SURGEONS & LANDSCAPES,5342745,21/08/2017,69607,180,0,Emergency branch removal at Queen's,241210,Horticultural Tree Trimming
South Lakeland District Council,http://opendatacommunities.org/id/district-council/south-lakeland,31/08/2017,Business Support Community Services,Cultural Environmental Regulatory & Planning Services,http://opendatacommunities.org/def/concept/finance/sercop/objective/104,CUMBRIA WASTE RECYCLING LTD,3162439,16/08/2017,70566,15017.3,0,Empty recycling banks in April to,182012,Environment Waste Management Recycling
South Lakeland District Council,http://opendatacommunities.org/id/district-council/south-lakeland,31/08/2017,Financial Services,Highways & Transport Services,http://opendatacommunities.org/def/concept/finance/sercop/objective/107,ZURICH MUNICIPAL,,30/08/2017,70761,250,0,EXC ESS I9209/1925 08172175073 Main,201800,Financial Services Insurance
South Lakeland District Council,http://opendatacommunities.org/id/district-council/south-lakeland,31/08/2017,Business Support Community Services,Housing Services,http://opendatacommunities.org/def/concept/finance/sercop/objective/108,Trown Housing Consultancy Ltd,9116635,07/08/2017,70221,300,0,Expenses,151900,Consultancy Management
South Lakeland District Council,http://opendatacommunities.org/id/district-council/south-lakeland,31/08/2017,Business Support Community Services,Cultural Environmental Regulatory & Planning Services,http://opendatacommunities.org/def/concept/finance/sercop/objective/104,7 Harrington Street Chambers,,16/08/2017,70501,8000,0,Fee for Nick Johnson QC  -,281300,Legal Services Legal Opinion
South Lakeland District Council,http://opendatacommunities.org/id/district-council/south-lakeland,31/08/2017,Legal Services,Central Services,http://opendatacommunities.org/def/concept/finance/sercop/objective/102,Eventus Legal Recruitment,,16/08/2017,70580,300,0,Fees for w/k ending 4/8/17,261300,HR Recruitment & Assessment
South Lakeland District Council,http://opendatacommunities.org/id/district-council/south-lakeland,31/08/2017,Legal Services,Central Services,http://opendatacommunities.org/def/concept/finance/sercop/objective/102,Eventus Legal Recruitment,,16/08/2017,70581,300,0,Fees for w/k ending 4/8/17,261300,HR Recruitment & Assessment
South Lakeland District Council,http://opendatacommunities.org/id/district-council/south-lakeland,31/08/2017,Legal Services,Central Services,http://opendatacommunities.org/def/concept/finance/sercop/objective/102,Eventus Legal Recruitment,,30/08/2017,70759,300,0,Fees for w/k ending 4/8/17,261300,HR Recruitment & Assessment
South Lakeland District Council,http://opendatacommunities.org/id/district-council/south-lakeland,31/08/2017,Legal Services,Central Services,http://opendatacommunities.org/def/concept/finance/sercop/objective/102,Timothy Leader,,30/08/2017,70740,350,0,Fees in respect of Commons town and,281200,Legal Services General Support
South Lakeland District Council,http://opendatacommunities.org/id/district-council/south-lakeland,31/08/2017,Legal Services,Central Services,http://opendatacommunities.org/def/concept/finance/sercop/objective/102,WEIGHTMANS LLP,OC326117,09/08/2017,70346,522,0,Fees in the ongoing case of Mr Rigg.,281300,Legal Services Legal Opinion
South Lakeland District Council,http://opendatacommunities.org/id/district-council/south-lakeland,31/08/2017,Legal Services,Central Services,http://opendatacommunities.org/def/concept/finance/sercop/objective/102,Eventus Legal Recruitment,,02/08/2017,70183,300,0,Fees re:  D. M from w/k/ end,261300,HR Recruitment & Assessment
South Lakeland District Council,http://opendatacommunities.org/id/district-council/south-lakeland,31/08/2017,Legal Services,Cultural Environmental Regulatory & Planning Services,http://opendatacommunities.org/def/concept/finance/sercop/objective/104,Timothy Leader,,30/08/2017,70739,800,0,Fees re:  Underbarrow Road Kendal,281200,Legal Services General Support
South Lakeland District Council,http://opendatacommunities.org/id/district-council/south-lakeland,31/08/2017,Human Resources,Central Services,http://opendatacommunities.org/def/concept/finance/sercop/objective/102,Flourish Learning Ltd,9039910,07/08/2017,70229,500,0,filming and video editing,171010,Education Adult & Further Ed
South Lakeland District Council,http://opendatacommunities.org/id/district-council/south-lakeland,31/08/2017,Business Support Community Services,Internal Trading Accounts,,GARWOOD EUROPE LTD,4333504,16/08/2017,70361,237.44,0,Filters,182011,Environment Waste Management Consumables
South Lakeland District Council,http://opendatacommunities.org/id/district-council/south-lakeland,31/08/2017,Business Support Community Services,Internal Trading Accounts,,DAVID BREAKS,,16/08/2017,70565,127.5,0,Fit cam belt,381500,Vehicle Mgt Parts
South Lakeland District Council,http://opendatacommunities.org/id/district-council/south-lakeland,31/08/2017,Business Support Community Services,Cultural Environmental Regulatory & Planning Services,http://opendatacommunities.org/def/concept/finance/sercop/objective/104,JEWSON LIMITED,348407,09/08/2017,70277,56.24,0,Fixtures & fittings 2017/18,101400,Building General Materials
South Lakeland District Council,http://opendatacommunities.org/id/district-council/south-lakeland,31/08/2017,Business Support Community Services,Cultural Environmental Regulatory & Planning Services,http://opendatacommunities.org/def/concept/finance/sercop/objective/104,JEWSON LIMITED,348407,23/08/2017,70729,13.4,0,Fixtures & fittings 2017/18,101400,Building General Materials
South Lakeland District Council,http://opendatacommunities.org/id/district-council/south-lakeland,31/08/2017,Social Enterprise Admin,External Trading Accounts,,Bowness & Windermere Community,,07/08/2017,70193,2146.25,0,For contribution from SLDC for water use,311600,Healthcare Services
South Lakeland District Council,http://opendatacommunities.org/id/district-council/south-lakeland,31/08/2017,Social Enterprise Admin,Cultural Environmental Regulatory & Planning Services,http://opendatacommunities.org/def/concept/finance/sercop/objective/104,CONTINENTAL LANDSCAPES LTD,2108452,07/08/2017,70246,2000,0,For disposal of waste to Kendal Fell,391310,Construction Open Spaces Construction
South Lakeland District Council,http://opendatacommunities.org/id/district-council/south-lakeland,31/08/2017,Social Enterprise Admin,Cultural Environmental Regulatory & Planning Services,http://opendatacommunities.org/def/concept/finance/sercop/objective/104,LDA Cleaning Services Ltd,8917986,09/08/2017,70349,140,0,For the continuation of cleaning for the,131310,Cleaning & Janitorial Cleaning Service
South Lakeland District Council,http://opendatacommunities.org/id/district-council/south-lakeland,31/08/2017,Social Enterprise Admin,Cultural Environmental Regulatory & Planning Services,http://opendatacommunities.org/def/concept/finance/sercop/objective/104,LDA Cleaning Services Ltd,8917986,23/08/2017,70708,175,0,For the continuation of cleaning for the,131310,Cleaning & Janitorial Cleaning Service
South Lakeland District Council,http://opendatacommunities.org/id/district-council/south-lakeland,31/08/2017,Social Enterprise Admin,Cultural Environmental Regulatory & Planning Services,http://opendatacommunities.org/def/concept/finance/sercop/objective/104,J S Cleaning Services,,09/08/2017,70348,60,0,For the weekly cleaning of the Chapel of,131010,Cleaning & Janitorial Cleaning Materials
South Lakeland District Council,http://opendatacommunities.org/id/district-council/south-lakeland,31/08/2017,Social Enterprise Admin,Cultural Environmental Regulatory & Planning Services,http://opendatacommunities.org/def/concept/finance/sercop/objective/104,J S Cleaning Services,,21/08/2017,70605,75,0,For the weekly cleaning of the Chapel of,131010,Cleaning & Janitorial Cleaning Materials
South Lakeland District Council,http://opendatacommunities.org/id/district-council/south-lakeland,31/08/2017,Leisure and Wellbeing,Cultural Environmental Regulatory & Planning Services,http://opendatacommunities.org/def/concept/finance/sercop/objective/104,CONTINENTAL LANDSCAPES LTD,2108452,07/08/2017,70244,7660,0,"For works at the Birdcage, Kendal",391310,Construction Open Spaces Construction
South Lakeland District Council,http://opendatacommunities.org/id/district-council/south-lakeland,31/08/2017,Leisure and Wellbeing,Cultural Environmental Regulatory & Planning Services,http://opendatacommunities.org/def/concept/finance/sercop/objective/104,CONTINENTAL LANDSCAPES LTD,2108452,07/08/2017,70245,3970,0,"For works at the Birdcage, Kendal",391310,Construction Open Spaces Construction
South Lakeland District Council,http://opendatacommunities.org/id/district-council/south-lakeland,31/08/2017,Leisure and Wellbeing,Cultural Environmental Regulatory & Planning Services,http://opendatacommunities.org/def/concept/finance/sercop/objective/104,CONTINENTAL LANDSCAPES LTD,2108452,07/08/2017,70242,980,0,For works at the old picnic area in,391310,Construction Open Spaces Construction
South Lakeland District Council,http://opendatacommunities.org/id/district-council/south-lakeland,31/08/2017,Financial Services,Central Services,http://opendatacommunities.org/def/concept/finance/sercop/objective/102,CUMBRIA LGPS,,21/08/2017,70137,188,0,FRS 102/IAS 19 rerun 31.03.17 Inv,908999,Public Bodies Not Elsewhere Classified
South Lakeland District Council,http://opendatacommunities.org/id/district-council/south-lakeland,31/08/2017,Human Resources,Central Services,http://opendatacommunities.org/def/concept/finance/sercop/objective/102,Choose Occupational Health,7365943,14/08/2017,70426,884.25,0,Full day clinic,191800,Facilities Public Relations & Image
South Lakeland District Council,http://opendatacommunities.org/id/district-council/south-lakeland,31/08/2017,Development Implementation,Central Services,http://opendatacommunities.org/def/concept/finance/sercop/objective/102,MARGARET BARROW INTERIORS LTD T/A MBI,,07/08/2017,68857,542,0,Furniture for SLDC as per your quote -,211200,Furniture & Soft Furn Office Furniture
South Lakeland District Council,http://opendatacommunities.org/id/district-council/south-lakeland,31/08/2017,Business Support Community Services,Internal Trading Accounts,,BOC GASES,337663,07/08/2017,70272,458.3,0,Gas supplies 2017/18,371100,Utilities Gas
South Lakeland District Council,http://opendatacommunities.org/id/district-council/south-lakeland,31/08/2017,Business Support Community Services,Internal Trading Accounts,,H WICKS (LINDAL) LTD,754590,07/08/2017,70273,300,0,"Gate fees, handling, transport & baling",182012,Environment Waste Management Recycling
South Lakeland District Council,http://opendatacommunities.org/id/district-council/south-lakeland,31/08/2017,Business Support Community Services,Internal Trading Accounts,,H WICKS (LINDAL) LTD,754590,14/08/2017,70417,300,0,"Gate fees, handling, transport & baling",182012,Environment Waste Management Recycling
South Lakeland District Council,http://opendatacommunities.org/id/district-council/south-lakeland,31/08/2017,Business Support Community Services,Internal Trading Accounts,,H WICKS (LINDAL) LTD,754590,21/08/2017,70657,900,0,"Gate fees, handling, transport & baling",182012,Environment Waste Management Recycling
South Lakeland District Council,http://opendatacommunities.org/id/district-council/south-lakeland,31/08/2017,Business Support Community Services,Internal Trading Accounts,,H WICKS (LINDAL) LTD,754590,21/08/2017,70658,1753.96,0,"Gate fees, handling, transport & baling",182012,Environment Waste Management Recycling
South Lakeland District Council,http://opendatacommunities.org/id/district-council/south-lakeland,31/08/2017,Business Support Community Services,Internal Trading Accounts,,H WICKS (LINDAL) LTD,754590,21/08/2017,70659,600,0,"Gate fees, handling, transport & baling",182012,Environment Waste Management Recycling
South Lakeland District Council,http://opendatacommunities.org/id/district-council/south-lakeland,31/08/2017,Financial Services,Central Services,http://opendatacommunities.org/def/concept/finance/sercop/objective/102,CIPP,4227998,14/08/2017,70522,234,0,Gender paygap reporting manchester,261500,HR Training & Conferences
South Lakeland District Council,http://opendatacommunities.org/id/district-council/south-lakeland,31/08/2017,Business Support Community Services,Central Services,http://opendatacommunities.org/def/concept/finance/sercop/objective/102,GLASDON UK LTD,2160576,02/08/2017,70089,3294.8,0,Glasdon Jubilee Litter Bin in Black with,109999,Building Not Elsewhere Classified
South Lakeland District Council,http://opendatacommunities.org/id/district-council/south-lakeland,31/08/2017,Leisure and Wellbeing,Cultural Environmental Regulatory & Planning Services,http://opendatacommunities.org/def/concept/finance/sercop/objective/104,CONTINENTAL LANDSCAPES LTD,2108452,07/08/2017,70240,3661.92,0,Gravedigging for July 2017,391310,Construction Open Spaces Construction
South Lakeland District Council,http://opendatacommunities.org/id/district-council/south-lakeland,31/08/2017,Business Support Community Services,Internal Trading Accounts,,BRIAN ARMISTEAD LTD T/A SINKFALL RECYCLI,4133280,02/08/2017,70157,1476,0,Green waste tipping - 2017/18,391110,Construction Buildings Construction
South Lakeland District Council,http://opendatacommunities.org/id/district-council/south-lakeland,31/08/2017,Business Support Community Services,Internal Trading Accounts,,BRIAN ARMISTEAD LTD T/A SINKFALL RECYCLI,4133280,02/08/2017,70158,2355.45,0,Green waste tipping - 2017/18,391110,Construction Buildings Construction
South Lakeland District Council,http://opendatacommunities.org/id/district-council/south-lakeland,31/08/2017,Business Support Community Services,Internal Trading Accounts,,BRIAN ARMISTEAD LTD T/A SINKFALL RECYCLI,4133280,14/08/2017,70416,1373.09,0,Green waste tipping - 2017/18,391110,Construction Buildings Construction
South Lakeland District Council,http://opendatacommunities.org/id/district-council/south-lakeland,31/08/2017,Business Support Community Services,Internal Trading Accounts,,BRIAN ARMISTEAD LTD T/A SINKFALL RECYCLI,4133280,14/08/2017,70485,2122.16,0,Green waste tipping - 2017/18,391110,Construction Buildings Construction
South Lakeland District Council,http://opendatacommunities.org/id/district-council/south-lakeland,31/08/2017,Business Support Community Services,Internal Trading Accounts,,BRIAN ARMISTEAD LTD T/A SINKFALL RECYCLI,4133280,21/08/2017,70656,1255.83,0,Green waste tipping - 2017/18,391110,Construction Buildings Construction
South Lakeland District Council,http://opendatacommunities.org/id/district-council/south-lakeland,31/08/2017,Business Support Community Services,Internal Trading Accounts,,BRIAN ARMISTEAD LTD T/A SINKFALL RECYCLI,4133280,30/08/2017,70793,2204.57,0,Green waste tipping - 2017/18,391110,Construction Buildings Construction
South Lakeland District Council,http://opendatacommunities.org/id/district-council/south-lakeland,31/08/2017,Business Support Community Services,Cultural Environmental Regulatory & Planning Services,http://opendatacommunities.org/def/concept/finance/sercop/objective/104,MOGO UK,3091301,23/08/2017,70687,626.9,0,Hackney Carriage Licence Plate Set,281400,Legal Services Specialist Support
South Lakeland District Council,http://opendatacommunities.org/id/district-council/south-lakeland,31/08/2017,Electoral Services,Central Services,http://opendatacommunities.org/def/concept/finance/sercop/objective/102,HALAROSE LIMITED,1362834,02/08/2017,70066,480,0,Halarose User Group ,271600,ICT Software Customised & Bespoke
South Lakeland District Council,http://opendatacommunities.org/id/district-council/south-lakeland,31/08/2017,Electoral Services,Central Services,http://opendatacommunities.org/def/concept/finance/sercop/objective/102,HALAROSE LIMITED,1362834,02/08/2017,70066,480,0,Halarose User Group ,271600,ICT Software Customised & Bespoke
South Lakeland District Council,http://opendatacommunities.org/id/district-council/south-lakeland,31/08/2017,Business Support Community Services,Cultural Environmental Regulatory & Planning Services,http://opendatacommunities.org/def/concept/finance/sercop/objective/104,NORTHGATE VEHICLE HIRE LTD,1434157,07/08/2017,70252,30.28,0,Hire 25/07/2017 - 27/07/2017,381600,Vehicle Mgt Leasing
South Lakeland District Council,http://opendatacommunities.org/id/district-council/south-lakeland,31/08/2017,Customer Services,Central Services,http://opendatacommunities.org/def/concept/finance/sercop/objective/102,NORTHGATE VEHICLE HIRE LTD,1434157,14/08/2017,70392,15.14,0,hire car  1st august,381600,Vehicle Mgt Leasing
South Lakeland District Council,http://opendatacommunities.org/id/district-council/south-lakeland,31/08/2017,Electoral Services,Central Services,http://opendatacommunities.org/def/concept/finance/sercop/objective/102,Greenwich Leisure Ltd,,02/08/2017,70067,5150.6,0,Hire of Leisure Centre 8/9 June,291400,Arts & Leisure Services Sport & Fitness
South Lakeland District Council,http://opendatacommunities.org/id/district-council/south-lakeland,31/08/2017,Business Support Community Services,Internal Trading Accounts,,HYDRAIR TRUCK & TRAILER PARTS LTD,,07/08/2017,70265,163.8,0,Hose,381500,Vehicle Mgt Parts
South Lakeland District Council,http://opendatacommunities.org/id/district-council/south-lakeland,31/08/2017,Financial Services,Central Services,http://opendatacommunities.org/def/concept/finance/sercop/objective/102,LG FUTURES LTD,5308266,14/08/2017,70473,1100,0,HS PN SM,261500,HR Training & Conferences
South Lakeland District Council,http://opendatacommunities.org/id/district-council/south-lakeland,31/08/2017,Business Support Community Services,Cultural Environmental Regulatory & Planning Services,http://opendatacommunities.org/def/concept/finance/sercop/objective/104,INTELLIGENT DATA SYSTEMS (UK) LTD,5148878,14/08/2017,70420,120.75,0,IDS Checks for Taxi Drivers,271510,ICT Application Service Provision
South Lakeland District Council,http://opendatacommunities.org/id/district-council/south-lakeland,31/08/2017,Development Management,Cultural Environmental Regulatory & Planning Services,http://opendatacommunities.org/def/concept/finance/sercop/objective/104,CARLISLE CITY COUNCIL,,14/08/2017,70470,1587.5,0,IHS Global Sunscription contribution,908000,Public Bodies Council support services
South Lakeland District Council,http://opendatacommunities.org/id/district-council/south-lakeland,31/08/2017,Development Management,Cultural Environmental Regulatory & Planning Services,http://opendatacommunities.org/def/concept/finance/sercop/objective/104,CARLISLE CITY COUNCIL,,14/08/2017,70470,952.5,0,IHS Global Sunscription contribution,908000,Public Bodies Council support services
South Lakeland District Council,http://opendatacommunities.org/id/district-council/south-lakeland,31/08/2017,Printing Section,Central Services,http://opendatacommunities.org/def/concept/finance/sercop/objective/102,ROSEFOX PAPER LIMITED,1655083,14/08/2017,70425,140.48,0,Inspira 160gsm cut to SRA2,341000,Stationery Paper
South Lakeland District Council,http://opendatacommunities.org/id/district-council/south-lakeland,31/08/2017,Business Support Community Services,Internal Trading Accounts,,INNOVATIVE SAFETY SYSTEMS LTD,6875015,07/08/2017,70264,1690,0,Install radar system,192200,Facilities Security
South Lakeland District Council,http://opendatacommunities.org/id/district-council/south-lakeland,31/08/2017,Financial Services,Central Services,http://opendatacommunities.org/def/concept/finance/sercop/objective/102,CIPFA,2376684,16/08/2017,70552,2000,0,Insurance Network 17/18,202100,Financial Services Subscriptions
South Lakeland District Council,http://opendatacommunities.org/id/district-council/south-lakeland,31/08/2017,Leisure and Wellbeing,Cultural Environmental Regulatory & Planning Services,http://opendatacommunities.org/def/concept/finance/sercop/objective/104,SOUTH LAKES TREE SURGEONS & LANDSCAPES,5342745,30/08/2017,70737,480,0,"Kendal - Ford Terrace, fell 2 horse",241210,Horticultural Tree Trimming
South Lakeland District Council,http://opendatacommunities.org/id/district-council/south-lakeland,31/08/2017,Development Implementation,Cultural Environmental Regulatory & Planning Services,http://opendatacommunities.org/def/concept/finance/sercop/objective/104,PS BUSINESS MATTERS,8147185,14/08/2017,70419,2000,0,Kendal Futures Programme Support,151900,Consultancy Management
South Lakeland District Council,http://opendatacommunities.org/id/district-council/south-lakeland,31/08/2017,Development Implementation,Cultural Environmental Regulatory & Planning Services,http://opendatacommunities.org/def/concept/finance/sercop/objective/104,WiFi Spark Ltd,,21/08/2017,70019,402.18,0,Kendal Town Centre Wifi Maintenance,271800,ICT Telecommunications Mobile
South Lakeland District Council,http://opendatacommunities.org/id/district-council/south-lakeland,31/08/2017,Development Implementation,Central Services,http://opendatacommunities.org/def/concept/finance/sercop/objective/102,Maysand Ltd,2912226,09/08/2017,70389,22362.84,0,Kendal Town Hall,390000,Construction
South Lakeland District Council,http://opendatacommunities.org/id/district-council/south-lakeland,31/08/2017,Development Implementation,Central Services,http://opendatacommunities.org/def/concept/finance/sercop/objective/102,LAMBERT SMITH HAMPTON GROUP,2521225,07/08/2017,70215,875,0,Kendal Town Hall - Stonework Repairs,999999,Unclassifiable
South Lakeland District Council,http://opendatacommunities.org/id/district-council/south-lakeland,31/08/2017,Development Implementation,SLDC as Agent,,Cactus Creative Ltd,4198363,14/08/2017,70337,340,0,Kendal Website - Server Migration and,191000,Facilities Advertising
South Lakeland District Council,http://opendatacommunities.org/id/district-council/south-lakeland,31/08/2017,Environment and Housing,Housing,http://opendatacommunities.org/def/concept/finance/sercop/objective/108,DOLPHIN MOBILITY YORKS & CUMBRIA,,09/08/2017,70378,3657.26,0,"Kendal, LA9 ",321311,Social Care Supplies Equipment
South Lakeland District Council,http://opendatacommunities.org/id/district-council/south-lakeland,31/08/2017,Business Support Community Services,Cultural Environmental Regulatory & Planning Services,http://opendatacommunities.org/def/concept/finance/sercop/objective/104,MILNTHORPE KENNELS & CATTERY,8932302,02/08/2017,70188,2633.93,0,Kennelling fees 2017/18,181500,Environment Animal Services
South Lakeland District Council,http://opendatacommunities.org/id/district-council/south-lakeland,31/08/2017,Business Support Community Services,Central Services,http://opendatacommunities.org/def/concept/finance/sercop/objective/102,STRAIGHT MANUFACTURING PLC,,16/08/2017,70560,5040,0,Kerbside box & ergo handle 55.l blue,182011,Environment Waste Management Consumables
South Lakeland District Council,http://opendatacommunities.org/id/district-council/south-lakeland,31/08/2017,Business Support Community Services,Internal Trading Accounts,,ARCO LIMITED,133804,02/08/2017,70151,46.39,0,Ladder,141100,Clothing Protective
South Lakeland District Council,http://opendatacommunities.org/id/district-council/south-lakeland,31/08/2017,Business Support Community Services,Internal Trading Accounts,,ARCO LIMITED,133804,02/08/2017,70152,392.58,0,Ladder,141100,Clothing Protective
South Lakeland District Council,http://opendatacommunities.org/id/district-council/south-lakeland,31/08/2017,Development Implementation,SLDC as Agent,,Skylark Aerial Photography,,14/08/2017,70422,800,0,Lake District Japan Forum Aerial Filming,191100,Facilities Design & Photography
South Lakeland District Council,http://opendatacommunities.org/id/district-council/south-lakeland,31/08/2017,Business Support Community Services,Central Services,http://opendatacommunities.org/def/concept/finance/sercop/objective/102,CUMBRIA COUNTY COUNCIL,,07/08/2017,70218,2486,0,LAND CHARGE SEARCH ENQUIRIES COMMONS,908000,Public Bodies Council support services
South Lakeland District Council,http://opendatacommunities.org/id/district-council/south-lakeland,31/08/2017,Development Implementation,Central Services,http://opendatacommunities.org/def/concept/finance/sercop/objective/102,CUMBRIA WASTE RECYCLING LTD,3162439,14/08/2017,70434,33.4,0,Langstone House 360ltr Wheelie Bin,182012,Environment Waste Management Recycling
South Lakeland District Council,http://opendatacommunities.org/id/district-council/south-lakeland,31/08/2017,Kendal Town Hall,Highways & Transport Services,http://opendatacommunities.org/def/concept/finance/sercop/objective/107,LOOMIS UK LTD,3200432,30/08/2017,70684,989.22,0,Langstone House contracted service (6,192200,Facilities Security
South Lakeland District Council,http://opendatacommunities.org/id/district-council/south-lakeland,31/08/2017,Business Support Community Services,Housing Services,http://opendatacommunities.org/def/concept/finance/sercop/objective/108,Whiteheads Solicitors Ltd,5954961,23/08/2017,70198,1027.4,0,Legal fee's for possession order,281300,Legal Services Legal Opinion
South Lakeland District Council,http://opendatacommunities.org/id/district-council/south-lakeland,31/08/2017,Business Support Community Services,Cultural Environmental Regulatory & Planning Services,http://opendatacommunities.org/def/concept/finance/sercop/objective/104,Greenwich Leisure Ltd,,14/08/2017,70457,59953.75,0,Leisure Management Fees - April to June,291400,Arts & Leisure Services Sport & Fitness
South Lakeland District Council,http://opendatacommunities.org/id/district-council/south-lakeland,31/08/2017,Business Support Community Services,Cultural Environmental Regulatory & Planning Services,http://opendatacommunities.org/def/concept/finance/sercop/objective/104,Greenwich Leisure Ltd,,14/08/2017,70458,59953.75,0,Leisure Management Fees - April to June,291400,Arts & Leisure Services Sport & Fitness
South Lakeland District Council,http://opendatacommunities.org/id/district-council/south-lakeland,31/08/2017,Business Support Community Services,Culture and Related Serv,http://opendatacommunities.org/def/concept/finance/sercop/objective/104,GRANTS- MISCELLANEOUS,,30/08/2017,70771,20000,0,LIPs grant contribution to B4RN project.,201700,Financial Services Grants
South Lakeland District Council,http://opendatacommunities.org/id/district-council/south-lakeland,31/08/2017,Business Support Community Services,Culture and Related Serv,http://opendatacommunities.org/def/concept/finance/sercop/objective/104,KIRKBY LONSDALE TOWN COUNCIL,,07/08/2017,70251,15000,0,LIPs grant contribution to Masters,908000,Public Bodies Council support services
South Lakeland District Council,http://opendatacommunities.org/id/district-council/south-lakeland,31/08/2017,Leisure and Wellbeing,Cultural Environmental Regulatory & Planning Services,http://opendatacommunities.org/def/concept/finance/sercop/objective/104,GLASDON UK LTD,2160576,07/08/2017,70347,860.4,0,Litter bins to be delivered ,109999,Building Not Elsewhere Classified
South Lakeland District Council,http://opendatacommunities.org/id/district-council/south-lakeland,31/08/2017,Development Implementation,Central Services,http://opendatacommunities.org/def/concept/finance/sercop/objective/102,ENVIROFIRST LTD,5999123,09/08/2017,70360,82.7,0,Lowther Street Wheelie bin mixed,182012,Environment Waste Management Recycling
South Lakeland District Council,http://opendatacommunities.org/id/district-council/south-lakeland,31/08/2017,Business Support Community Services,Cultural Environmental Regulatory & Planning Services,http://opendatacommunities.org/def/concept/finance/sercop/objective/104,LAMBERT SMITH HAMPTON GROUP,2521225,30/08/2017,70640,2800,0,"LSH Consultation SL/2015/0255 10, Cart",999999,Unclassifiable
South Lakeland District Council,http://opendatacommunities.org/id/district-council/south-lakeland,31/08/2017,Leisure and Wellbeing,Cultural Environmental Regulatory & Planning Services,http://opendatacommunities.org/def/concept/finance/sercop/objective/104,GEORGE BARKER & SONS (TIMBER MERCH) LTD,,09/08/2017,70340,234.7,0,M6 x 50 coachbolt cw nut,102500,Building Timber
South Lakeland District Council,http://opendatacommunities.org/id/district-council/south-lakeland,31/08/2017,Business Support Community Services,Housing Services,http://opendatacommunities.org/def/concept/finance/sercop/objective/108,Berrylands Surgery,,09/08/2017,70341,25,0,Medical report for,311600,Healthcare Services
South Lakeland District Council,http://opendatacommunities.org/id/district-council/south-lakeland,31/08/2017,Democratic and Member Services,Central Services,http://opendatacommunities.org/def/concept/finance/sercop/objective/102,The A21 Campaign,,14/08/2017,70491,250,0,"Member Training 4 October 2017 ""What is",261500,HR Training & Conferences
South Lakeland District Council,http://opendatacommunities.org/id/district-council/south-lakeland,31/08/2017,Social Enterprise Admin,Central Services,http://opendatacommunities.org/def/concept/finance/sercop/objective/102,WOOF'S OF SEDBERGH,,07/08/2017,70219,175,0,MINI BUS SITE VISITS FOR MEMBERS RE,361300,Public Transport Passenger Transport
South Lakeland District Council,http://opendatacommunities.org/id/district-council/south-lakeland,31/08/2017,ICT Group,Cultural Environmental Regulatory & Planning Services,http://opendatacommunities.org/def/concept/finance/sercop/objective/104,BRITISH TELECOMMUNICATIONS PLC,1800000,07/08/2017,70201,124,0,Mintworks - Line Rental 01539 7935120.,279999,ICT Not Elsewhere Classified
South Lakeland District Council,http://opendatacommunities.org/id/district-council/south-lakeland,31/08/2017,Business Support Community Services,Internal Trading Accounts,,HYDRAIR TRUCK & TRAILER PARTS LTD,,23/08/2017,70703,63.41,0,Mirror,381500,Vehicle Mgt Parts
South Lakeland District Council,http://opendatacommunities.org/id/district-council/south-lakeland,31/08/2017,Business Support Community Services,Internal Trading Accounts,,HYDRAIR TRUCK & TRAILER PARTS LTD,,23/08/2017,70704,63.41,0,Mirror,381500,Vehicle Mgt Parts
South Lakeland District Council,http://opendatacommunities.org/id/district-council/south-lakeland,31/08/2017,Development Implementation,Central Services,http://opendatacommunities.org/def/concept/finance/sercop/objective/102,LAMBERT SMITH HAMPTON GROUP,2521225,14/08/2017,70443,1395.96,0,Monthly Additional Fee - ,999999,Unclassifiable
South Lakeland District Council,http://opendatacommunities.org/id/district-council/south-lakeland,31/08/2017,Lake Wardens,Cultural Environmental Regulatory & Planning Services,http://opendatacommunities.org/def/concept/finance/sercop/objective/104,CUMBRIA WASTE RECYCLING LTD,3162439,14/08/2017,70435,265.88,0,Monthly collection of Refuse Wheelie,182012,Environment Waste Management Recycling
South Lakeland District Council,http://opendatacommunities.org/id/district-council/south-lakeland,31/08/2017,Lake Wardens,Cultural Environmental Regulatory & Planning Services,http://opendatacommunities.org/def/concept/finance/sercop/objective/104,CUMBRIA WASTE RECYCLING LTD,3162439,14/08/2017,70440,251.8,0,Monthly collection of Refuse Wheelie,182012,Environment Waste Management Recycling
South Lakeland District Council,http://opendatacommunities.org/id/district-council/south-lakeland,31/08/2017,Environment and Housing,Housing,http://opendatacommunities.org/def/concept/finance/sercop/objective/108,ENVIRONMENT & HOUSING GRANTS,,07/08/2017,70353,2500,0,Monthly rent,201700,Financial Services Grants
South Lakeland District Council,http://opendatacommunities.org/id/district-council/south-lakeland,31/08/2017,Business Support Community Services,Housing Services,http://opendatacommunities.org/def/concept/finance/sercop/objective/108,Landlord,,02/08/2017,70172,415,0,Monthly rent,250010,Housing Letting Agents
South Lakeland District Council,http://opendatacommunities.org/id/district-council/south-lakeland,31/08/2017,Business Support Community Services,Housing Services,http://opendatacommunities.org/def/concept/finance/sercop/objective/108,Landlord,,02/08/2017,70174,500,0,Monthly rent,250010,Housing Letting Agents
South Lakeland District Council,http://opendatacommunities.org/id/district-council/south-lakeland,31/08/2017,Business Support Community Services,Housing Services,http://opendatacommunities.org/def/concept/finance/sercop/objective/108,Landlord,,02/08/2017,70176,600,0,Monthly rent,250000,Housing
South Lakeland District Council,http://opendatacommunities.org/id/district-council/south-lakeland,31/08/2017,Business Support Community Services,Housing Services,http://opendatacommunities.org/def/concept/finance/sercop/objective/108,Landlord,,23/08/2017,70717,700,0,Monthly rent,250000,Housing
South Lakeland District Council,http://opendatacommunities.org/id/district-council/south-lakeland,31/08/2017,Business Support Community Services,Housing Services,http://opendatacommunities.org/def/concept/finance/sercop/objective/108,Landlord,7009105,02/08/2017,70171,480,0,Monthly rent ,250000,Housing
South Lakeland District Council,http://opendatacommunities.org/id/district-council/south-lakeland,31/08/2017,Business Support Community Services,Housing Services,http://opendatacommunities.org/def/concept/finance/sercop/objective/108,Landlord,,02/08/2017,70173,400,0,Monthly rent ,250000,Housing
South Lakeland District Council,http://opendatacommunities.org/id/district-council/south-lakeland,31/08/2017,Business Support Community Services,Housing Services,http://opendatacommunities.org/def/concept/finance/sercop/objective/108,Landlord,,02/08/2017,70175,410,0,Monthly rent ,250000,Housing
South Lakeland District Council,http://opendatacommunities.org/id/district-council/south-lakeland,31/08/2017,Business Support Community Services,Housing Services,http://opendatacommunities.org/def/concept/finance/sercop/objective/108,Landlord,,07/08/2017,70333,400,0,Monthly rent ,250010,Housing Letting Agents
South Lakeland District Council,http://opendatacommunities.org/id/district-council/south-lakeland,31/08/2017,Business Support Community Services,Housing Services,http://opendatacommunities.org/def/concept/finance/sercop/objective/108,Landlord,,07/08/2017,70334,400,0,Monthly rent ,250000,Housing
South Lakeland District Council,http://opendatacommunities.org/id/district-council/south-lakeland,31/08/2017,Business Support Community Services,Housing Services,http://opendatacommunities.org/def/concept/finance/sercop/objective/108,Landlord,,07/08/2017,70335,500,0,Monthly rent ,202000,Financial Services Rents
South Lakeland District Council,http://opendatacommunities.org/id/district-council/south-lakeland,31/08/2017,Business Support Community Services,Housing Services,http://opendatacommunities.org/def/concept/finance/sercop/objective/108,Landlord,,09/08/2017,70380,520,0,Monthly rent ,202000,Financial Services Rents
South Lakeland District Council,http://opendatacommunities.org/id/district-council/south-lakeland,31/08/2017,Business Support Community Services,Housing Services,http://opendatacommunities.org/def/concept/finance/sercop/objective/108,Landlord,7121028,14/08/2017,70505,400,0,Monthly rent ,202000,Financial Services Rents
South Lakeland District Council,http://opendatacommunities.org/id/district-council/south-lakeland,31/08/2017,Business Support Community Services,Housing Services,http://opendatacommunities.org/def/concept/finance/sercop/objective/108,Landlord,,14/08/2017,70506,600,0,Monthly rent ,250000,Housing
South Lakeland District Council,http://opendatacommunities.org/id/district-council/south-lakeland,31/08/2017,Business Support Community Services,Housing Services,http://opendatacommunities.org/def/concept/finance/sercop/objective/108,Landlord,,14/08/2017,70507,520,0,Monthly rent ,202000,Financial Services Rents
South Lakeland District Council,http://opendatacommunities.org/id/district-council/south-lakeland,31/08/2017,Business Support Community Services,Housing Services,http://opendatacommunities.org/def/concept/finance/sercop/objective/108,Landlord,,14/08/2017,70508,520,0,Monthly rent ,202000,Financial Services Rents
South Lakeland District Council,http://opendatacommunities.org/id/district-council/south-lakeland,31/08/2017,Business Support Community Services,Housing Services,http://opendatacommunities.org/def/concept/finance/sercop/objective/108,Landlord,,16/08/2017,70554,1190,0,Monthly rent ,202000,Financial Services Rents
South Lakeland District Council,http://opendatacommunities.org/id/district-council/south-lakeland,31/08/2017,Business Support Community Services,Housing Services,http://opendatacommunities.org/def/concept/finance/sercop/objective/108,Landlord,,16/08/2017,70555,520,0,Monthly rent ,202000,Financial Services Rents
South Lakeland District Council,http://opendatacommunities.org/id/district-council/south-lakeland,31/08/2017,Business Support Community Services,Housing Services,http://opendatacommunities.org/def/concept/finance/sercop/objective/108,Landlord,8672920,21/08/2017,70672,400,0,Monthly rent ,202000,Financial Services Rents
South Lakeland District Council,http://opendatacommunities.org/id/district-council/south-lakeland,31/08/2017,Business Support Community Services,Housing Services,http://opendatacommunities.org/def/concept/finance/sercop/objective/108,Landlord,7803122,23/08/2017,70716,500,0,Monthly rent ,250000,Housing
South Lakeland District Council,http://opendatacommunities.org/id/district-council/south-lakeland,31/08/2017,Business Support Community Services,Housing Services,http://opendatacommunities.org/def/concept/finance/sercop/objective/108,Landlord,,30/08/2017,70801,410,0,Monthly rent ,250000,Housing
South Lakeland District Council,http://opendatacommunities.org/id/district-council/south-lakeland,31/08/2017,Business Support Community Services,Housing Services,http://opendatacommunities.org/def/concept/finance/sercop/objective/108,Landlord,,30/08/2017,70802,400,0,Monthly rent ,250000,Housing
South Lakeland District Council,http://opendatacommunities.org/id/district-council/south-lakeland,31/08/2017,Business Support Community Services,Housing Services,http://opendatacommunities.org/def/concept/finance/sercop/objective/108,Landlord,,30/08/2017,70803,415,0,Monthly rent ,250010,Housing Letting Agents
South Lakeland District Council,http://opendatacommunities.org/id/district-council/south-lakeland,31/08/2017,Business Support Community Services,Housing Services,http://opendatacommunities.org/def/concept/finance/sercop/objective/108,Landlord,7009105,30/08/2017,70804,480,0,Monthly rent ,250000,Housing
South Lakeland District Council,http://opendatacommunities.org/id/district-council/south-lakeland,31/08/2017,Business Support Community Services,Housing Services,http://opendatacommunities.org/def/concept/finance/sercop/objective/108,Landlord,,30/08/2017,70805,500,0,Monthly rent ,250000,Housing
South Lakeland District Council,http://opendatacommunities.org/id/district-council/south-lakeland,31/08/2017,Business Support Community Services,Housing Services,http://opendatacommunities.org/def/concept/finance/sercop/objective/108,Landlord,,30/08/2017,70806,625,0,Monthly rent ,202000,Financial Services Rents
South Lakeland District Council,http://opendatacommunities.org/id/district-council/south-lakeland,31/08/2017,Business Support Community Services,Housing Services,http://opendatacommunities.org/def/concept/finance/sercop/objective/108,Landlord,,30/08/2017,70807,500,0,Monthly rent ,202000,Financial Services Rents
South Lakeland District Council,http://opendatacommunities.org/id/district-council/south-lakeland,31/08/2017,Business Support Community Services,Housing Services,http://opendatacommunities.org/def/concept/finance/sercop/objective/108,Landlord,,30/08/2017,70808,625,0,Monthly rent ,202000,Financial Services Rents
South Lakeland District Council,http://opendatacommunities.org/id/district-council/south-lakeland,31/08/2017,Business Support Community Services,Housing Services,http://opendatacommunities.org/def/concept/finance/sercop/objective/108,Landlord,,30/08/2017,70809,520,0,Monthly rent ,250000,Housing
South Lakeland District Council,http://opendatacommunities.org/id/district-council/south-lakeland,31/08/2017,Business Support Community Services,Housing Services,http://opendatacommunities.org/def/concept/finance/sercop/objective/108,Landlord,,16/08/2017,70553,890,0,Monthly rent payment,250000,Housing
South Lakeland District Council,http://opendatacommunities.org/id/district-council/south-lakeland,31/08/2017,Business Support Community Services,Internal Trading Accounts,,M G D LTD,,02/08/2017,70087,35,0,MOTs 01/04/17 - 31/03/18,381400,Vehicle Mgt Maintenance
South Lakeland District Council,http://opendatacommunities.org/id/district-council/south-lakeland,31/08/2017,Business Support Community Services,Internal Trading Accounts,,M G D LTD,,30/08/2017,70746,35,0,MOTs 01/04/17 - 31/03/18,381400,Vehicle Mgt Maintenance
South Lakeland District Council,http://opendatacommunities.org/id/district-council/south-lakeland,31/08/2017,Business Support Community Services,Internal Trading Accounts,,M G D LTD,,30/08/2017,70747,35,0,MOTs 01/04/17 - 31/03/18,381400,Vehicle Mgt Maintenance
South Lakeland District Council,http://opendatacommunities.org/id/district-council/south-lakeland,31/08/2017,Business Support Community Services,Internal Trading Accounts,,S J Bargh,532272,02/08/2017,70105,208.5,0,MOTs 2017/18,381400,Vehicle Mgt Maintenance
South Lakeland District Council,http://opendatacommunities.org/id/district-council/south-lakeland,31/08/2017,Business Support Community Services,Internal Trading Accounts,,S J Bargh,532272,09/08/2017,70290,208.5,0,MOTs 2017/18,381400,Vehicle Mgt Maintenance
South Lakeland District Council,http://opendatacommunities.org/id/district-council/south-lakeland,31/08/2017,Policy & Partnerships,Central Services,http://opendatacommunities.org/def/concept/finance/sercop/objective/102,MERITEC LTD,3224622,14/08/2017,70432,41000,0,MPLS Data Link (SLDC and EDC) to,391200,Construction Engineering
South Lakeland District Council,http://opendatacommunities.org/id/district-council/south-lakeland,31/08/2017,Printing Section,Central Services,http://opendatacommunities.org/def/concept/finance/sercop/objective/102,TAALUS TECHNICAL SOLUTIONS LTD,7931407,07/08/2017,68820,62.5,0,Nevertear clear stickyback for Taxi,279999,ICT Not Elsewhere Classified
South Lakeland District Council,http://opendatacommunities.org/id/district-council/south-lakeland,31/08/2017,Kendal Town Hall,Highways & Transport Services,http://opendatacommunities.org/def/concept/finance/sercop/objective/107,ACS BPS LTD,,09/08/2017,70382,280.8,0,New push bar for entry barrier inc.,111200,Catering Food & Beverages
South Lakeland District Council,http://opendatacommunities.org/id/district-council/south-lakeland,31/08/2017,Development Implementation,Central Services,http://opendatacommunities.org/def/concept/finance/sercop/objective/102,Cirrus Research Plc,987160,23/08/2017,70459,235,0,Noise Measurement Workshop 24th January,913000,Technical Support Equipment
South Lakeland District Council,http://opendatacommunities.org/id/district-council/south-lakeland,31/08/2017,Business Support Community Services,Housing Services,http://opendatacommunities.org/def/concept/finance/sercop/objective/108,CARLISLE CITY COUNCIL,,21/08/2017,70677,201,0,NPSS Homeless Reduction Bill Training,908000,Public Bodies Council support services
South Lakeland District Council,http://opendatacommunities.org/id/district-council/south-lakeland,31/08/2017,Business Support Community Services,Internal Trading Accounts,,EK MOTOR FACTORS LTD,838524,09/08/2017,70293,5.95,0,Oil filter,381400,Vehicle Mgt Maintenance
South Lakeland District Council,http://opendatacommunities.org/id/district-council/south-lakeland,31/08/2017,Business Support Community Services,Internal Trading Accounts,,EK MOTOR FACTORS LTD,838524,09/08/2017,70294,58.36,0,Oil filter,381400,Vehicle Mgt Maintenance
South Lakeland District Council,http://opendatacommunities.org/id/district-council/south-lakeland,31/08/2017,Business Support Community Services,Internal Trading Accounts,,EK MOTOR FACTORS LTD,838524,09/08/2017,70297,32.9,0,Oil filter,381400,Vehicle Mgt Maintenance
South Lakeland District Council,http://opendatacommunities.org/id/district-council/south-lakeland,31/08/2017,Business Support Community Services,Internal Trading Accounts,,EK MOTOR FACTORS LTD,838524,09/08/2017,70298,50.12,0,Oil filter,381400,Vehicle Mgt Maintenance
South Lakeland District Council,http://opendatacommunities.org/id/district-council/south-lakeland,31/08/2017,Policy & Partnerships,Central Services,http://opendatacommunities.org/def/concept/finance/sercop/objective/102,L C Packaging UK Ltd,555739,14/08/2017,69770,1657.5,0,Order for 15 pallets of 65 sandbags,180000,Environmental Services
South Lakeland District Council,http://opendatacommunities.org/id/district-council/south-lakeland,31/08/2017,Business Support Community Services,Internal Trading Accounts,,EK MOTOR FACTORS LTD,838524,02/08/2017,70082,5.95,0,Pads,381400,Vehicle Mgt Maintenance
South Lakeland District Council,http://opendatacommunities.org/id/district-council/south-lakeland,31/08/2017,Business Support Community Services,Internal Trading Accounts,,EK MOTOR FACTORS LTD,838524,02/08/2017,70083,5.95,0,Pads,381400,Vehicle Mgt Maintenance
South Lakeland District Council,http://opendatacommunities.org/id/district-council/south-lakeland,31/08/2017,Business Support Community Services,Internal Trading Accounts,,EK MOTOR FACTORS LTD,838524,02/08/2017,70086,30.79,0,Pads,381400,Vehicle Mgt Maintenance
South Lakeland District Council,http://opendatacommunities.org/id/district-council/south-lakeland,31/08/2017,Business Support Community Services,Internal Trading Accounts,,EK MOTOR FACTORS LTD,838524,02/08/2017,70096,-18.8,0,Pads,381400,Vehicle Mgt Maintenance
South Lakeland District Council,http://opendatacommunities.org/id/district-council/south-lakeland,31/08/2017,Business Support Community Services,Internal Trading Accounts,,EK MOTOR FACTORS LTD,838524,02/08/2017,70097,85.68,0,Pads,381400,Vehicle Mgt Maintenance
South Lakeland District Council,http://opendatacommunities.org/id/district-council/south-lakeland,31/08/2017,Business Support Community Services,Internal Trading Accounts,,EK MOTOR FACTORS LTD,838524,02/08/2017,70099,26.27,0,Pads,381400,Vehicle Mgt Maintenance
South Lakeland District Council,http://opendatacommunities.org/id/district-council/south-lakeland,31/08/2017,Business Support Community Services,Internal Trading Accounts,,EK MOTOR FACTORS LTD,838524,21/08/2017,70642,26.49,0,Pads,381400,Vehicle Mgt Maintenance
South Lakeland District Council,http://opendatacommunities.org/id/district-council/south-lakeland,31/08/2017,Business Support Community Services,Internal Trading Accounts,,EK MOTOR FACTORS LTD,838524,21/08/2017,70643,19.25,0,Pads,381400,Vehicle Mgt Maintenance
South Lakeland District Council,http://opendatacommunities.org/id/district-council/south-lakeland,31/08/2017,Business Support Community Services,Internal Trading Accounts,,EK MOTOR FACTORS LTD,838524,21/08/2017,70644,11.47,0,Pads,381400,Vehicle Mgt Maintenance
South Lakeland District Council,http://opendatacommunities.org/id/district-council/south-lakeland,31/08/2017,Business Support Community Services,Internal Trading Accounts,,EK MOTOR FACTORS LTD,838524,21/08/2017,70645,10.59,0,Pads,381400,Vehicle Mgt Maintenance
South Lakeland District Council,http://opendatacommunities.org/id/district-council/south-lakeland,31/08/2017,Business Support Community Services,Internal Trading Accounts,,EK MOTOR FACTORS LTD,838524,21/08/2017,70648,47.33,0,Pads,381400,Vehicle Mgt Maintenance
South Lakeland District Council,http://opendatacommunities.org/id/district-council/south-lakeland,31/08/2017,Business Support Community Services,Internal Trading Accounts,,EK MOTOR FACTORS LTD,838524,21/08/2017,70654,121.36,0,Pads,381400,Vehicle Mgt Maintenance
South Lakeland District Council,http://opendatacommunities.org/id/district-council/south-lakeland,31/08/2017,Leisure and Wellbeing,Highways & Transport Services,http://opendatacommunities.org/def/concept/finance/sercop/objective/107,CONTINENTAL LANDSCAPES LTD,2108452,21/08/2017,70237,12.15,0,Parks routine maintenance,391310,Construction Open Spaces Construction
South Lakeland District Council,http://opendatacommunities.org/id/district-council/south-lakeland,31/08/2017,Leisure and Wellbeing,Highways & Transport Services,http://opendatacommunities.org/def/concept/finance/sercop/objective/107,CONTINENTAL LANDSCAPES LTD,2108452,21/08/2017,70237,12.15,0,Parks routine maintenance,391310,Construction Open Spaces Construction
South Lakeland District Council,http://opendatacommunities.org/id/district-council/south-lakeland,31/08/2017,Leisure and Wellbeing,Highways & Transport Services,http://opendatacommunities.org/def/concept/finance/sercop/objective/107,CONTINENTAL LANDSCAPES LTD,2108452,21/08/2017,70237,1.22,0,Parks routine maintenance,391310,Construction Open Spaces Construction
South Lakeland District Council,http://opendatacommunities.org/id/district-council/south-lakeland,31/08/2017,Leisure and Wellbeing,Highways & Transport Services,http://opendatacommunities.org/def/concept/finance/sercop/objective/107,CONTINENTAL LANDSCAPES LTD,2108452,21/08/2017,70237,12.15,0,Parks routine maintenance,391310,Construction Open Spaces Construction
South Lakeland District Council,http://opendatacommunities.org/id/district-council/south-lakeland,31/08/2017,Leisure and Wellbeing,Highways & Transport Services,http://opendatacommunities.org/def/concept/finance/sercop/objective/107,CONTINENTAL LANDSCAPES LTD,2108452,21/08/2017,70237,12.15,0,Parks routine maintenance,391310,Construction Open Spaces Construction
South Lakeland District Council,http://opendatacommunities.org/id/district-council/south-lakeland,31/08/2017,Leisure and Wellbeing,Highways & Transport Services,http://opendatacommunities.org/def/concept/finance/sercop/objective/107,CONTINENTAL LANDSCAPES LTD,2108452,21/08/2017,70237,12.15,0,Parks routine maintenance,391310,Construction Open Spaces Construction
South Lakeland District Council,http://opendatacommunities.org/id/district-council/south-lakeland,31/08/2017,Leisure and Wellbeing,Highways & Transport Services,http://opendatacommunities.org/def/concept/finance/sercop/objective/107,CONTINENTAL LANDSCAPES LTD,2108452,21/08/2017,70237,36.46,0,Parks routine maintenance,391310,Construction Open Spaces Construction
South Lakeland District Council,http://opendatacommunities.org/id/district-council/south-lakeland,31/08/2017,Leisure and Wellbeing,Highways & Transport Services,http://opendatacommunities.org/def/concept/finance/sercop/objective/107,CONTINENTAL LANDSCAPES LTD,2108452,21/08/2017,70237,243.05,0,Parks routine maintenance,391310,Construction Open Spaces Construction
South Lakeland District Council,http://opendatacommunities.org/id/district-council/south-lakeland,31/08/2017,Leisure and Wellbeing,Highways & Transport Services,http://opendatacommunities.org/def/concept/finance/sercop/objective/107,CONTINENTAL LANDSCAPES LTD,2108452,21/08/2017,70237,151.91,0,Parks routine maintenance,391310,Construction Open Spaces Construction
South Lakeland District Council,http://opendatacommunities.org/id/district-council/south-lakeland,31/08/2017,Leisure and Wellbeing,Highways & Transport Services,http://opendatacommunities.org/def/concept/finance/sercop/objective/107,CONTINENTAL LANDSCAPES LTD,2108452,21/08/2017,70237,6.08,0,Parks routine maintenance,391310,Construction Open Spaces Construction
South Lakeland District Council,http://opendatacommunities.org/id/district-council/south-lakeland,31/08/2017,Leisure and Wellbeing,Highways & Transport Services,http://opendatacommunities.org/def/concept/finance/sercop/objective/107,CONTINENTAL LANDSCAPES LTD,2108452,21/08/2017,70237,60.76,0,Parks routine maintenance,391310,Construction Open Spaces Construction
South Lakeland District Council,http://opendatacommunities.org/id/district-council/south-lakeland,31/08/2017,Leisure and Wellbeing,Highways & Transport Services,http://opendatacommunities.org/def/concept/finance/sercop/objective/107,CONTINENTAL LANDSCAPES LTD,2108452,21/08/2017,70237,60.76,0,Parks routine maintenance,391310,Construction Open Spaces Construction
South Lakeland District Council,http://opendatacommunities.org/id/district-council/south-lakeland,31/08/2017,Leisure and Wellbeing,Highways & Transport Services,http://opendatacommunities.org/def/concept/finance/sercop/objective/107,CONTINENTAL LANDSCAPES LTD,2108452,21/08/2017,70237,121.53,0,Parks routine maintenance,391310,Construction Open Spaces Construction
South Lakeland District Council,http://opendatacommunities.org/id/district-council/south-lakeland,31/08/2017,Leisure and Wellbeing,Highways & Transport Services,http://opendatacommunities.org/def/concept/finance/sercop/objective/107,CONTINENTAL LANDSCAPES LTD,2108452,21/08/2017,70237,6.08,0,Parks routine maintenance,391310,Construction Open Spaces Construction
South Lakeland District Council,http://opendatacommunities.org/id/district-council/south-lakeland,31/08/2017,Leisure and Wellbeing,Highways & Transport Services,http://opendatacommunities.org/def/concept/finance/sercop/objective/107,CONTINENTAL LANDSCAPES LTD,2108452,21/08/2017,70237,6.08,0,Parks routine maintenance,391310,Construction Open Spaces Construction
South Lakeland District Council,http://opendatacommunities.org/id/district-council/south-lakeland,31/08/2017,Leisure and Wellbeing,Highways & Transport Services,http://opendatacommunities.org/def/concept/finance/sercop/objective/107,CONTINENTAL LANDSCAPES LTD,2108452,21/08/2017,70237,3.04,0,Parks routine maintenance,391310,Construction Open Spaces Construction
South Lakeland District Council,http://opendatacommunities.org/id/district-council/south-lakeland,31/08/2017,Leisure and Wellbeing,Highways & Transport Services,http://opendatacommunities.org/def/concept/finance/sercop/objective/107,CONTINENTAL LANDSCAPES LTD,2108452,21/08/2017,70237,60.76,0,Parks routine maintenance,391310,Construction Open Spaces Construction
South Lakeland District Council,http://opendatacommunities.org/id/district-council/south-lakeland,31/08/2017,Leisure and Wellbeing,Highways & Transport Services,http://opendatacommunities.org/def/concept/finance/sercop/objective/107,CONTINENTAL LANDSCAPES LTD,2108452,21/08/2017,70237,54.69,0,Parks routine maintenance,391310,Construction Open Spaces Construction
South Lakeland District Council,http://opendatacommunities.org/id/district-council/south-lakeland,31/08/2017,Leisure and Wellbeing,Highways & Transport Services,http://opendatacommunities.org/def/concept/finance/sercop/objective/107,CONTINENTAL LANDSCAPES LTD,2108452,21/08/2017,70237,66.84,0,Parks routine maintenance,391310,Construction Open Spaces Construction
South Lakeland District Council,http://opendatacommunities.org/id/district-council/south-lakeland,31/08/2017,Leisure and Wellbeing,Highways & Transport Services,http://opendatacommunities.org/def/concept/finance/sercop/objective/107,CONTINENTAL LANDSCAPES LTD,2108452,21/08/2017,70237,127.6,0,Parks routine maintenance,391310,Construction Open Spaces Construction
South Lakeland District Council,http://opendatacommunities.org/id/district-council/south-lakeland,31/08/2017,Leisure and Wellbeing,Highways & Transport Services,http://opendatacommunities.org/def/concept/finance/sercop/objective/107,CONTINENTAL LANDSCAPES LTD,2108452,21/08/2017,70237,121.53,0,Parks routine maintenance,391310,Construction Open Spaces Construction
South Lakeland District Council,http://opendatacommunities.org/id/district-council/south-lakeland,31/08/2017,Leisure and Wellbeing,Highways & Transport Services,http://opendatacommunities.org/def/concept/finance/sercop/objective/107,CONTINENTAL LANDSCAPES LTD,2108452,21/08/2017,70237,12.15,0,Parks routine maintenance,391310,Construction Open Spaces Construction
South Lakeland District Council,http://opendatacommunities.org/id/district-council/south-lakeland,31/08/2017,Leisure and Wellbeing,Highways & Transport Services,http://opendatacommunities.org/def/concept/finance/sercop/objective/107,CONTINENTAL LANDSCAPES LTD,2108452,21/08/2017,70237,12.15,0,Parks routine maintenance,391310,Construction Open Spaces Construction
South Lakeland District Council,http://opendatacommunities.org/id/district-council/south-lakeland,31/08/2017,Leisure and Wellbeing,Highways & Transport Services,http://opendatacommunities.org/def/concept/finance/sercop/objective/107,CONTINENTAL LANDSCAPES LTD,2108452,21/08/2017,70237,36.46,0,Parks routine maintenance,391310,Construction Open Spaces Construction
South Lakeland District Council,http://opendatacommunities.org/id/district-council/south-lakeland,31/08/2017,Leisure and Wellbeing,Highways & Transport Services,http://opendatacommunities.org/def/concept/finance/sercop/objective/107,CONTINENTAL LANDSCAPES LTD,2108452,21/08/2017,70237,60.76,0,Parks routine maintenance,391310,Construction Open Spaces Construction
South Lakeland District Council,http://opendatacommunities.org/id/district-council/south-lakeland,31/08/2017,Leisure and Wellbeing,Highways & Transport Services,http://opendatacommunities.org/def/concept/finance/sercop/objective/107,CONTINENTAL LANDSCAPES LTD,2108452,21/08/2017,70237,108.1,0,Parks routine maintenance,391310,Construction Open Spaces Construction
South Lakeland District Council,http://opendatacommunities.org/id/district-council/south-lakeland,31/08/2017,Leisure and Wellbeing,Highways & Transport Services,http://opendatacommunities.org/def/concept/finance/sercop/objective/107,CONTINENTAL LANDSCAPES LTD,2108452,21/08/2017,70237,121.53,0,Parks routine maintenance,391310,Construction Open Spaces Construction
South Lakeland District Council,http://opendatacommunities.org/id/district-council/south-lakeland,31/08/2017,Leisure and Wellbeing,Highways & Transport Services,http://opendatacommunities.org/def/concept/finance/sercop/objective/107,CONTINENTAL LANDSCAPES LTD,2108452,21/08/2017,70237,224.83,0,Parks routine maintenance,391310,Construction Open Spaces Construction
South Lakeland District Council,http://opendatacommunities.org/id/district-council/south-lakeland,31/08/2017,Leisure and Wellbeing,Highways & Transport Services,http://opendatacommunities.org/def/concept/finance/sercop/objective/107,CONTINENTAL LANDSCAPES LTD,2108452,21/08/2017,70237,121.53,0,Parks routine maintenance,391310,Construction Open Spaces Construction
South Lakeland District Council,http://opendatacommunities.org/id/district-council/south-lakeland,31/08/2017,Leisure and Wellbeing,Highways & Transport Services,http://opendatacommunities.org/def/concept/finance/sercop/objective/107,CONTINENTAL LANDSCAPES LTD,2108452,21/08/2017,70237,182.29,0,Parks routine maintenance,391310,Construction Open Spaces Construction
South Lakeland District Council,http://opendatacommunities.org/id/district-council/south-lakeland,31/08/2017,Leisure and Wellbeing,Cultural Environmental Regulatory & Planning Services,http://opendatacommunities.org/def/concept/finance/sercop/objective/104,CONTINENTAL LANDSCAPES LTD,2108452,21/08/2017,70237,9722.17,0,Parks routine maintenance,391310,Construction Open Spaces Construction
South Lakeland District Council,http://opendatacommunities.org/id/district-council/south-lakeland,31/08/2017,Leisure and Wellbeing,Cultural Environmental Regulatory & Planning Services,http://opendatacommunities.org/def/concept/finance/sercop/objective/104,CONTINENTAL LANDSCAPES LTD,2108452,21/08/2017,70237,46599.34,0,Parks routine maintenance,391310,Construction Open Spaces Construction
South Lakeland District Council,http://opendatacommunities.org/id/district-council/south-lakeland,31/08/2017,Leisure and Wellbeing,Cultural Environmental Regulatory & Planning Services,http://opendatacommunities.org/def/concept/finance/sercop/objective/104,CONTINENTAL LANDSCAPES LTD,2108452,21/08/2017,70237,364.58,0,Parks routine maintenance,391310,Construction Open Spaces Construction
South Lakeland District Council,http://opendatacommunities.org/id/district-council/south-lakeland,31/08/2017,Leisure and Wellbeing,Cultural Environmental Regulatory & Planning Services,http://opendatacommunities.org/def/concept/finance/sercop/objective/104,CONTINENTAL LANDSCAPES LTD,2108452,21/08/2017,70237,2309.02,0,Parks routine maintenance,391310,Construction Open Spaces Construction
South Lakeland District Council,http://opendatacommunities.org/id/district-council/south-lakeland,31/08/2017,Leisure and Wellbeing,External Trading Accounts,,CONTINENTAL LANDSCAPES LTD,2108452,21/08/2017,70237,106.34,0,Parks routine maintenance,391310,Construction Open Spaces Construction
South Lakeland District Council,http://opendatacommunities.org/id/district-council/south-lakeland,31/08/2017,Electoral Services,Central Services,http://opendatacommunities.org/def/concept/finance/sercop/objective/102,ROYAL MAIL GROUP PLC,,14/08/2017,70446,624,0,Parliamentary Election Postal Vote,301200,Mail Services� Postage
South Lakeland District Council,http://opendatacommunities.org/id/district-council/south-lakeland,31/08/2017,Business Support Community Services,Internal Trading Accounts,,CUMBRIA TRUCK CENTRE LTD,4298488,02/08/2017,70103,339.26,0,Part,381300,Vehicle Mgt Industrial
South Lakeland District Council,http://opendatacommunities.org/id/district-council/south-lakeland,31/08/2017,Business Support Community Services,Cultural Environmental Regulatory & Planning Services,http://opendatacommunities.org/def/concept/finance/sercop/objective/104,LAKELAND SUPPLIES,,14/08/2017,70494,40.93,0,Parts,101610,Building Hand Tools
South Lakeland District Council,http://opendatacommunities.org/id/district-council/south-lakeland,31/08/2017,Business Support Community Services,Cultural Environmental Regulatory & Planning Services,http://opendatacommunities.org/def/concept/finance/sercop/objective/104,LAKELAND SUPPLIES,,14/08/2017,70495,56.89,0,Parts,101610,Building Hand Tools
South Lakeland District Council,http://opendatacommunities.org/id/district-council/south-lakeland,31/08/2017,Social Enterprise Admin,SLDC as Agent,,PAY BY PHONE (PAYPOINT),,14/08/2017,70418,649.48,0,Pay-by-phone charges from 1 April 2017,351400,Street & Traffic Traffic Control
South Lakeland District Council,http://opendatacommunities.org/id/district-council/south-lakeland,31/08/2017,Environment and Housing,Housing Services,http://opendatacommunities.org/def/concept/finance/sercop/objective/108,GROWING CONCERNS LTD,,23/08/2017,70469,1054.47,0,Payment for Handy Person Scheme,391200,Construction Engineering
South Lakeland District Council,http://opendatacommunities.org/id/district-council/south-lakeland,31/08/2017,Environment and Housing,Housing Services,http://opendatacommunities.org/def/concept/finance/sercop/objective/108,GROWING CONCERNS LTD,,23/08/2017,70683,1038.28,0,Payment for Handy Person Scheme,391200,Construction Engineering
South Lakeland District Council,http://opendatacommunities.org/id/district-council/south-lakeland,31/08/2017,Business Support Community Services,Cultural Environmental Regulatory & Planning Services,http://opendatacommunities.org/def/concept/finance/sercop/objective/104,Victoria Pink Transcription,,09/08/2017,70327,90.12,0,Payment for transcription of audio to,271400,ICT Office & Reprographics Equipment
South Lakeland District Council,http://opendatacommunities.org/id/district-council/south-lakeland,31/08/2017,Democratic and Member Services,Central Services,http://opendatacommunities.org/def/concept/finance/sercop/objective/102,CRUDEN PROPERTY SERVICES LTD,3851237,14/08/2017,70393,45.33,0,payment to hang new Chairman's,391111,Construction Buildings Repair & Mtce
South Lakeland District Council,http://opendatacommunities.org/id/district-council/south-lakeland,31/08/2017,Business Support Community Services,Internal Trading Accounts,,FAUN ZOELLER (UK) LTD,751804,07/08/2017,70271,211.75,0,Pillar,381400,Vehicle Mgt Maintenance
South Lakeland District Council,http://opendatacommunities.org/id/district-council/south-lakeland,31/08/2017,Business Support Community Services,Internal Trading Accounts,,DENNIS EAGLE LTD,3794455,09/08/2017,70311,231.48,0,Pipe,381300,Vehicle Mgt Industrial
South Lakeland District Council,http://opendatacommunities.org/id/district-council/south-lakeland,31/08/2017,Social Enterprise Admin,Cultural Environmental Regulatory & Planning Services,http://opendatacommunities.org/def/concept/finance/sercop/objective/104,THOMSON REUTERS (PROFESSIONAL) UK LTD,1679046,02/08/2017,70070,64,0,PLANNING CONT THEIR REINFORCEMENT REL 23,202100,Financial Services Subscriptions
South Lakeland District Council,http://opendatacommunities.org/id/district-council/south-lakeland,31/08/2017,ICT Group,Central Services,http://opendatacommunities.org/def/concept/finance/sercop/objective/102,Insight Direct (Uk) Ltd,2579852,02/08/2017,69865,234.7,0,Plantronics Blackwire 320-M Headset,271200,ICT Hardware
South Lakeland District Council,http://opendatacommunities.org/id/district-council/south-lakeland,31/08/2017,Business Support Community Services,Internal Trading Accounts,,EK MOTOR FACTORS LTD,838524,14/08/2017,70476,5.95,0,Plate,381400,Vehicle Mgt Maintenance
South Lakeland District Council,http://opendatacommunities.org/id/district-council/south-lakeland,31/08/2017,Business Support Community Services,Internal Trading Accounts,,EK MOTOR FACTORS LTD,838524,14/08/2017,70477,5,0,Plate,381400,Vehicle Mgt Maintenance
South Lakeland District Council,http://opendatacommunities.org/id/district-council/south-lakeland,31/08/2017,Business Support Community Services,Internal Trading Accounts,,EK MOTOR FACTORS LTD,838524,14/08/2017,70479,20.04,0,Plate,381400,Vehicle Mgt Maintenance
South Lakeland District Council,http://opendatacommunities.org/id/district-council/south-lakeland,31/08/2017,Business Support Community Services,Internal Trading Accounts,,EK MOTOR FACTORS LTD,838524,14/08/2017,70480,-5.02,0,Plate,381400,Vehicle Mgt Maintenance
South Lakeland District Council,http://opendatacommunities.org/id/district-council/south-lakeland,31/08/2017,Business Support Community Services,Internal Trading Accounts,,EK MOTOR FACTORS LTD,838524,14/08/2017,70481,38.85,0,Plate,381400,Vehicle Mgt Maintenance
South Lakeland District Council,http://opendatacommunities.org/id/district-council/south-lakeland,31/08/2017,Business Support Community Services,Internal Trading Accounts,,EK MOTOR FACTORS LTD,838524,14/08/2017,70486,50.87,0,Plate,381400,Vehicle Mgt Maintenance
South Lakeland District Council,http://opendatacommunities.org/id/district-council/south-lakeland,31/08/2017,Business Support Community Services,Internal Trading Accounts,,VOLVO GROUP UK LTD,2190944,09/08/2017,70263,34.5,0,Plugs,381000,Vehicle Mgt Commercial
South Lakeland District Council,http://opendatacommunities.org/id/district-council/south-lakeland,31/08/2017,ICT Group,Central Services,http://opendatacommunities.org/def/concept/finance/sercop/objective/102,PROBRAND LTD,2653446,21/08/2017,70194,3.61,0,PO Hadn't gone through for this 2 months,271600,ICT Software Customised & Bespoke
South Lakeland District Council,http://opendatacommunities.org/id/district-council/south-lakeland,31/08/2017,Revenues and Benefits,Central Services,http://opendatacommunities.org/def/concept/finance/sercop/objective/102,ROYAL MAIL GROUP PLC,,02/08/2017,70063,123.84,0,Postal Charges a/c 0055114000  (2017/18),301200,Mail Services� Postage
South Lakeland District Council,http://opendatacommunities.org/id/district-council/south-lakeland,31/08/2017,Revenues and Benefits,Central Services,http://opendatacommunities.org/def/concept/finance/sercop/objective/102,ROYAL MAIL GROUP PLC,,14/08/2017,70500,40.92,0,Postal Charges a/c 0055114000  (2017/18),301200,Mail Services� Postage
South Lakeland District Council,http://opendatacommunities.org/id/district-council/south-lakeland,31/08/2017,Revenues and Benefits,SLDC as Agent,,ROYAL MAIL GROUP PLC,,02/08/2017,70064,1389.8,0,Postal Charges a/c 0198123013 (2017-18),301200,Mail Services� Postage
South Lakeland District Council,http://opendatacommunities.org/id/district-council/south-lakeland,31/08/2017,Revenues and Benefits,SLDC as Agent,,ROYAL MAIL GROUP PLC,,07/08/2017,70339,1139.91,0,Postal Charges a/c 0198123013 (2017-18),301200,Mail Services� Postage
South Lakeland District Council,http://opendatacommunities.org/id/district-council/south-lakeland,31/08/2017,Revenues and Benefits,SLDC as Agent,,ROYAL MAIL GROUP PLC,,14/08/2017,70445,1061.23,0,Postal Charges a/c 0198123013 (2017-18),301200,Mail Services� Postage
South Lakeland District Council,http://opendatacommunities.org/id/district-council/south-lakeland,31/08/2017,Business Support Community Services,Cultural Environmental Regulatory & Planning Services,http://opendatacommunities.org/def/concept/finance/sercop/objective/104,UNITED UTILITIES WATER PLC,2366678,30/08/2017,70762,1921.51,0,Private Water Analysis - July 2017,371300,Utilities Water
South Lakeland District Council,http://opendatacommunities.org/id/district-council/south-lakeland,31/08/2017,Business Support Community Services,Cultural Environmental Regulatory & Planning Services,http://opendatacommunities.org/def/concept/finance/sercop/objective/104,UNITED UTILITIES WATER PLC,2366678,07/08/2017,70226,1788.62,0,Private Water Analysis - June 2017,371300,Utilities Water
South Lakeland District Council,http://opendatacommunities.org/id/district-council/south-lakeland,31/08/2017,Development Implementation,Central Services,http://opendatacommunities.org/def/concept/finance/sercop/objective/102,LAMBERT SMITH HAMPTON GROUP,2521225,14/08/2017,70442,60140.17,0,Property Services Contract - April -,999999,Unclassifiable
South Lakeland District Council,http://opendatacommunities.org/id/district-council/south-lakeland,31/08/2017,Development Implementation,Central Services,http://opendatacommunities.org/def/concept/finance/sercop/objective/102,LAMBERT SMITH HAMPTON GROUP,2521225,23/08/2017,70641,60140.17,0,Property Services Contract - April -,999999,Unclassifiable
South Lakeland District Council,http://opendatacommunities.org/id/district-council/south-lakeland,31/08/2017,Development Implementation,Central Services,http://opendatacommunities.org/def/concept/finance/sercop/objective/102,Brown Toland Brown Associates,,07/08/2017,70220,1470,0,Provision of consultancy services for,151000,Consultancy Business
South Lakeland District Council,http://opendatacommunities.org/id/district-council/south-lakeland,31/08/2017,Policy & Partnerships,Cultural Environmental Regulatory & Planning Services,http://opendatacommunities.org/def/concept/finance/sercop/objective/104,NEWSQUEST MEDIA GROUP LTD,3102566,02/08/2017,70133,221.76,0,Public Notice Asset of Community Value,191000,Facilities Advertising
South Lakeland District Council,http://opendatacommunities.org/id/district-council/south-lakeland,31/08/2017,Social Enterprise Admin,Cultural Environmental Regulatory & Planning Services,http://opendatacommunities.org/def/concept/finance/sercop/objective/104,NEWSQUEST MEDIA GROUP LTD,3102566,21/08/2017,69765,120.96,0,PUBLIC NOTICES FOR PLANNING 1 APRIL - 31,191000,Facilities Advertising
South Lakeland District Council,http://opendatacommunities.org/id/district-council/south-lakeland,31/08/2017,Social Enterprise Admin,Cultural Environmental Regulatory & Planning Services,http://opendatacommunities.org/def/concept/finance/sercop/objective/104,NEWSQUEST MEDIA GROUP LTD,3102566,02/08/2017,70132,302.4,0,PUBLIC NOTICES FOR PLANNING 1 APRIL - 31,191000,Facilities Advertising
South Lakeland District Council,http://opendatacommunities.org/id/district-council/south-lakeland,31/08/2017,Social Enterprise Admin,Cultural Environmental Regulatory & Planning Services,http://opendatacommunities.org/def/concept/finance/sercop/objective/104,NEWSQUEST MEDIA GROUP LTD,3102566,14/08/2017,70363,201.6,0,PUBLIC NOTICES FOR PLANNING 1 APRIL - 31,191000,Facilities Advertising
South Lakeland District Council,http://opendatacommunities.org/id/district-council/south-lakeland,31/08/2017,Social Enterprise Admin,Cultural Environmental Regulatory & Planning Services,http://opendatacommunities.org/def/concept/finance/sercop/objective/104,NEWSQUEST MEDIA GROUP LTD,3102566,16/08/2017,70545,201.6,0,PUBLIC NOTICES FOR PLANNING 1 APRIL - 31,191000,Facilities Advertising
South Lakeland District Council,http://opendatacommunities.org/id/district-council/south-lakeland,31/08/2017,Social Enterprise Admin,Cultural Environmental Regulatory & Planning Services,http://opendatacommunities.org/def/concept/finance/sercop/objective/104,FURNESS NEWSPAPERS LTD,1155841,07/08/2017,70206,51.8,0,PUBLIC NOTICES FOR PLANNING 1 APRIL 2015,191000,Facilities Advertising
South Lakeland District Council,http://opendatacommunities.org/id/district-council/south-lakeland,31/08/2017,Human Resources,Central Services,http://opendatacommunities.org/def/concept/finance/sercop/objective/102,MIDLAND SOFTWARE LTD,1852206,23/08/2017,69824,3597.55,0,Quarterly Charge - iTrent Software,271600,ICT Software Customised & Bespoke
South Lakeland District Council,http://opendatacommunities.org/id/district-council/south-lakeland,31/08/2017,Human Resources,Central Services,http://opendatacommunities.org/def/concept/finance/sercop/objective/102,MIDLAND SOFTWARE LTD,1852206,30/08/2017,70795,3597.55,0,Quarterly Charge - iTrent Software,271600,ICT Software Customised & Bespoke
South Lakeland District Council,http://opendatacommunities.org/id/district-council/south-lakeland,31/08/2017,Revenues and Benefits,Central Services,http://opendatacommunities.org/def/concept/finance/sercop/objective/102,MERITEC LTD,3224622,14/08/2017,70465,279,0,RAB Processing Contract and Agency Staff,391200,Construction Engineering
South Lakeland District Council,http://opendatacommunities.org/id/district-council/south-lakeland,31/08/2017,Business Support Community Services,Internal Trading Accounts,,INNOVATIVE SAFETY SYSTEMS LTD,6875015,21/08/2017,70607,1511,0,Radars,192200,Facilities Security
South Lakeland District Council,http://opendatacommunities.org/id/district-council/south-lakeland,31/08/2017,Revenues and Benefits,Central Services,http://opendatacommunities.org/def/concept/finance/sercop/objective/102,EDEN DISTRICT COUNCIL,,14/08/2017,70499,21132.15,0,Recharge for Shared Post 2017 - 18,908000,Public Bodies Council support services
South Lakeland District Council,http://opendatacommunities.org/id/district-council/south-lakeland,31/08/2017,Business Support Community Services,Internal Trading Accounts,,AINSWORTH'S GARAGE,,16/08/2017,70558,29.25,0,Recover SL017,381400,Vehicle Mgt Maintenance
South Lakeland District Council,http://opendatacommunities.org/id/district-council/south-lakeland,31/08/2017,Business Support Community Services,Internal Trading Accounts,,AINSWORTH'S GARAGE,,16/08/2017,70559,340,0,Recover SL017,381400,Vehicle Mgt Maintenance
South Lakeland District Council,http://opendatacommunities.org/id/district-council/south-lakeland,31/08/2017,Business Support Community Services,Internal Trading Accounts,,RIBBLESDALE AUTO ELECTRICS 1992 LTD,2732686,21/08/2017,70632,14.05,0,Reflectors,381500,Vehicle Mgt Parts
South Lakeland District Council,http://opendatacommunities.org/id/district-council/south-lakeland,31/08/2017,Business Support Community Services,Internal Trading Accounts,,RIBBLESDALE AUTO ELECTRICS 1992 LTD,2732686,21/08/2017,70635,230.9,0,Reflectors,381500,Vehicle Mgt Parts
South Lakeland District Council,http://opendatacommunities.org/id/district-council/south-lakeland,31/08/2017,Business Support Community Services,Internal Trading Accounts,,RIBBLESDALE AUTO ELECTRICS 1992 LTD,2732686,21/08/2017,70637,84,0,Reflectors,381500,Vehicle Mgt Parts
South Lakeland District Council,http://opendatacommunities.org/id/district-council/south-lakeland,31/08/2017,Business Support Community Services,Culture and Related Serv,http://opendatacommunities.org/def/concept/finance/sercop/objective/104,Greenwich Leisure Ltd,,09/08/2017,70250,125000,0,Refurbishment of Changing Rooms at,291400,Arts & Leisure Services Sport & Fitness
South Lakeland District Council,http://opendatacommunities.org/id/district-council/south-lakeland,31/08/2017,Leisure and Wellbeing,Cultural Environmental Regulatory & Planning Services,http://opendatacommunities.org/def/concept/finance/sercop/objective/104,Bergen Arbortech,,16/08/2017,70569,860,0,Removal of oak tree at Pembroke,241210,Horticultural Tree Trimming
South Lakeland District Council,http://opendatacommunities.org/id/district-council/south-lakeland,31/08/2017,Leisure and Wellbeing,Cultural Environmental Regulatory & Planning Services,http://opendatacommunities.org/def/concept/finance/sercop/objective/104,PARKLAND MACHINERY LTD,5253701,16/08/2017,70384,1450,0,Remove 31m timber fence,331000,Sports Playground Equipment
South Lakeland District Council,http://opendatacommunities.org/id/district-council/south-lakeland,31/08/2017,Business Support Community Services,Housing Services,http://opendatacommunities.org/def/concept/finance/sercop/objective/108,IMPACT HOUSING ASSOCIATION LTD,IP21411R,16/08/2017,70556,970,0,Rent arrears payment,250000,Housing
South Lakeland District Council,http://opendatacommunities.org/id/district-council/south-lakeland,31/08/2017,Business Support Community Services,Housing Services,http://opendatacommunities.org/def/concept/finance/sercop/objective/108,Hackney & Leigh Ltd,4643476,30/08/2017,70800,950,0,Rent in advance,201700,Financial Services Grants
South Lakeland District Council,http://opendatacommunities.org/id/district-council/south-lakeland,31/08/2017,Business Support Community Services,Housing Services,http://opendatacommunities.org/def/concept/finance/sercop/objective/108,SOUTH LAKES HOUSING RENT A/C,,30/08/2017,70798,377.56,0,Rent in advance,191700,Facilities Property Management
South Lakeland District Council,http://opendatacommunities.org/id/district-council/south-lakeland,31/08/2017,Business Support Community Services,Housing Services,http://opendatacommunities.org/def/concept/finance/sercop/objective/108,SOUTH LAKES HOUSING RENT A/C,,30/08/2017,70799,359.6,0,Rent in advance,191700,Facilities Property Management
South Lakeland District Council,http://opendatacommunities.org/id/district-council/south-lakeland,31/08/2017,Lake Wardens,Cultural Environmental Regulatory & Planning Services,http://opendatacommunities.org/def/concept/finance/sercop/objective/104,ENVIROFIRST LTD,5999123,09/08/2017,70359,58.88,0,Rental & Emptying of Re-cycling Bins,182012,Environment Waste Management Recycling
South Lakeland District Council,http://opendatacommunities.org/id/district-council/south-lakeland,31/08/2017,Business Support Community Services,Internal Trading Accounts,,AINSWORTH'S GARAGE,,02/08/2017,70098,39,0,Repair PX16 KGY,381400,Vehicle Mgt Maintenance
South Lakeland District Council,http://opendatacommunities.org/id/district-council/south-lakeland,31/08/2017,Business Support Community Services,Internal Trading Accounts,,TTS (GARSTANG) LTD,4990573,09/08/2017,70262,85.6,0,Repair SL001,381500,Vehicle Mgt Parts
South Lakeland District Council,http://opendatacommunities.org/id/district-council/south-lakeland,31/08/2017,Business Support Community Services,Internal Trading Accounts,,AUTOMOTIVE GLAZING SOLUTIONS,5922870,16/08/2017,70563,45,0,Repair SL006,381400,Vehicle Mgt Maintenance
South Lakeland District Council,http://opendatacommunities.org/id/district-council/south-lakeland,31/08/2017,Business Support Community Services,Internal Trading Accounts,,Southfield Garage,,09/08/2017,70282,320,0,Repair SL008,380000,Vehicle Management
South Lakeland District Council,http://opendatacommunities.org/id/district-council/south-lakeland,31/08/2017,Business Support Community Services,Internal Trading Accounts,,Southfield Garage,,16/08/2017,70557,300,0,Repair SL030,380000,Vehicle Management
South Lakeland District Council,http://opendatacommunities.org/id/district-council/south-lakeland,31/08/2017,Business Support Community Services,Internal Trading Accounts,,Southfield Garage,,09/08/2017,70283,460,0,Repair SL031,380000,Vehicle Management
South Lakeland District Council,http://opendatacommunities.org/id/district-council/south-lakeland,31/08/2017,Business Support Community Services,Internal Trading Accounts,,Southfield Garage,,09/08/2017,70284,250,0,Repair SL031,380000,Vehicle Management
South Lakeland District Council,http://opendatacommunities.org/id/district-council/south-lakeland,31/08/2017,Business Support Community Services,Internal Trading Accounts,,Southfield Garage,,09/08/2017,70303,380,0,Repair SL031,380000,Vehicle Management
South Lakeland District Council,http://opendatacommunities.org/id/district-council/south-lakeland,31/08/2017,Business Support Community Services,Internal Trading Accounts,,ALAN MYERSCOUGH LTD,2027076,07/08/2017,70287,250,0,Repair SL081,381400,Vehicle Mgt Maintenance
South Lakeland District Council,http://opendatacommunities.org/id/district-council/south-lakeland,31/08/2017,Business Support Community Services,Internal Trading Accounts,,AINSWORTH'S GARAGE,,09/08/2017,70258,29.25,0,Repair VX14 LKK,381400,Vehicle Mgt Maintenance
South Lakeland District Council,http://opendatacommunities.org/id/district-council/south-lakeland,31/08/2017,Business Support Community Services,Internal Trading Accounts,,AINSWORTH'S GARAGE,,09/08/2017,70259,55,0,Repair VX14 LKK,381400,Vehicle Mgt Maintenance
South Lakeland District Council,http://opendatacommunities.org/id/district-council/south-lakeland,31/08/2017,Business Support Community Services,Internal Trading Accounts,,Preston Trade Parts Specialists,,21/08/2017,70615,46.33,0,Resistor,381400,Vehicle Mgt Maintenance
South Lakeland District Council,http://opendatacommunities.org/id/district-council/south-lakeland,31/08/2017,Business Support Community Services,Internal Trading Accounts,,Preston Trade Parts Specialists,,21/08/2017,70616,3.57,0,Resistor,381400,Vehicle Mgt Maintenance
South Lakeland District Council,http://opendatacommunities.org/id/district-council/south-lakeland,31/08/2017,Business Support Community Services,Internal Trading Accounts,,Preston Trade Parts Specialists,,21/08/2017,70618,12.05,0,Resistor,381400,Vehicle Mgt Maintenance
South Lakeland District Council,http://opendatacommunities.org/id/district-council/south-lakeland,31/08/2017,Business Support Community Services,Internal Trading Accounts,,Preston Trade Parts Specialists,,21/08/2017,70624,23.11,0,Resistor,381400,Vehicle Mgt Maintenance
South Lakeland District Council,http://opendatacommunities.org/id/district-council/south-lakeland,31/08/2017,Business Support Community Services,Internal Trading Accounts,,Preston Trade Parts Specialists,,21/08/2017,70626,40.85,0,Resistor,381400,Vehicle Mgt Maintenance
South Lakeland District Council,http://opendatacommunities.org/id/district-council/south-lakeland,31/08/2017,Electoral Services,Central Services,http://opendatacommunities.org/def/concept/finance/sercop/objective/102,ROYAL MAIL GROUP PLC,,14/08/2017,70452,3.73,0,Response Plus Postage,301200,Mail Services� Postage
South Lakeland District Council,http://opendatacommunities.org/id/district-council/south-lakeland,31/08/2017,Electoral Services,Central Services,http://opendatacommunities.org/def/concept/finance/sercop/objective/102,ROYAL MAIL GROUP PLC,,30/08/2017,70760,74.04,0,Response Plus Postage normal,301200,Mail Services� Postage
South Lakeland District Council,http://opendatacommunities.org/id/district-council/south-lakeland,31/08/2017,Electoral Services,Central Services,http://opendatacommunities.org/def/concept/finance/sercop/objective/102,ROYAL MAIL GROUP PLC,,14/08/2017,70453,1227.53,0,Return postage Parliamentary Postal,301200,Mail Services� Postage
South Lakeland District Council,http://opendatacommunities.org/id/district-council/south-lakeland,31/08/2017,Leisure and Wellbeing,Culture and Related Serv,http://opendatacommunities.org/def/concept/finance/sercop/objective/104,HAGS-SMP Ltd,908021,07/08/2017,70235,24617.33,0,"Rinkfield Playground, Option 1 works as",331000,Sports Playground Equipment
South Lakeland District Council,http://opendatacommunities.org/id/district-council/south-lakeland,31/08/2017,Development Implementation,Environment Regulatory,,LAMBERT SMITH HAMPTON GROUP,2521225,07/08/2017,70213,8900,0,Rothay Park Flood Impact Works,999999,Unclassifiable
South Lakeland District Council,http://opendatacommunities.org/id/district-council/south-lakeland,31/08/2017,Business Support Community Services,Cultural Environmental Regulatory & Planning Services,http://opendatacommunities.org/def/concept/finance/sercop/objective/104,ARCO LIMITED,133804,21/08/2017,70567,-288.18,0,SAFETY EQUIPMENT FOR PLANNING OFFICERS,141100,Clothing Protective
South Lakeland District Council,http://opendatacommunities.org/id/district-council/south-lakeland,31/08/2017,Electoral Services,Central Services,http://opendatacommunities.org/def/concept/finance/sercop/objective/102,THOMSON REUTERS (PROFESSIONAL) UK LTD,1679046,21/08/2017,70069,175,0,Schofields Election Law Issue 35,202100,Financial Services Subscriptions
South Lakeland District Council,http://opendatacommunities.org/id/district-council/south-lakeland,31/08/2017,Business Support Community Services,Internal Trading Accounts,,GARWOOD EUROPE LTD,4333504,16/08/2017,70362,206.26,0,Seals,182011,Environment Waste Management Consumables
South Lakeland District Council,http://opendatacommunities.org/id/district-council/south-lakeland,31/08/2017,Business Support Community Services,Internal Trading Accounts,,K S INTERNATIONAL LTD,2703321,21/08/2017,70679,60,0,Seals,381500,Vehicle Mgt Parts
South Lakeland District Council,http://opendatacommunities.org/id/district-council/south-lakeland,31/08/2017,Business Support Community Services,Internal Trading Accounts,,K S INTERNATIONAL LTD,2703321,21/08/2017,70680,237,0,Seals,381500,Vehicle Mgt Parts
South Lakeland District Council,http://opendatacommunities.org/id/district-council/south-lakeland,31/08/2017,Business Support Community Services,Internal Trading Accounts,,K S INTERNATIONAL LTD,2703321,21/08/2017,70681,303,0,Seals,381500,Vehicle Mgt Parts
South Lakeland District Council,http://opendatacommunities.org/id/district-council/south-lakeland,31/08/2017,Leisure and Wellbeing,Cultural Environmental Regulatory & Planning Services,http://opendatacommunities.org/def/concept/finance/sercop/objective/104,R J MOORHOUSE WELDING & FABRICATIONS,,07/08/2017,70224,403,0,Seat anchors at the old picnic area at,391200,Construction Engineering
South Lakeland District Council,http://opendatacommunities.org/id/district-council/south-lakeland,31/08/2017,Business Support Community Services,Housing Services,http://opendatacommunities.org/def/concept/finance/sercop/objective/108,Vigilant Security Services UK Ltd,5914271,14/08/2017,70394,2268,0,Secruity guard at TVF Hostel,192213,Facilities Security Manned Guarding
South Lakeland District Council,http://opendatacommunities.org/id/district-council/south-lakeland,31/08/2017,Business Support Community Services,Internal Trading Accounts,,CUMBRIA TRUCK CENTRE LTD,4298488,02/08/2017,70092,200.84,0,Sensors,381300,Vehicle Mgt Industrial
South Lakeland District Council,http://opendatacommunities.org/id/district-council/south-lakeland,31/08/2017,Leisure and Wellbeing,Cultural Environmental Regulatory & Planning Services,http://opendatacommunities.org/def/concept/finance/sercop/objective/104,Bergen Arbortech,,16/08/2017,70568,695,0,"Serpentine Cottage and Pembroke Court,",241210,Horticultural Tree Trimming
South Lakeland District Council,http://opendatacommunities.org/id/district-council/south-lakeland,31/08/2017,Business Support Community Services,Cultural Environmental Regulatory & Planning Services,http://opendatacommunities.org/def/concept/finance/sercop/objective/104,LAMBERT SMITH HAMPTON GROUP,2521225,14/08/2017,70451,2400,0,Services of Burgess Roughton etc through,999999,Unclassifiable
South Lakeland District Council,http://opendatacommunities.org/id/district-council/south-lakeland,31/08/2017,Customer Services,Central Services,http://opendatacommunities.org/def/concept/finance/sercop/objective/102,SHRED-IT,4047194,30/08/2017,70744,149.59,0,shred it supplies,279999,ICT Not Elsewhere Classified
South Lakeland District Council,http://opendatacommunities.org/id/district-council/south-lakeland,31/08/2017,Business Support Community Services,Internal Trading Accounts,,CUMBRIA WASTE RECYCLING LTD,3162439,16/08/2017,70561,1484.88,0,Skip emptying at Ecclerigg & Ulverston,182012,Environment Waste Management Recycling
South Lakeland District Council,http://opendatacommunities.org/id/district-council/south-lakeland,31/08/2017,Business Support Community Services,Internal Trading Accounts,,CUMBRIA WASTE RECYCLING LTD,3162439,16/08/2017,70562,236,0,Skip emptying at Ecclerigg & Ulverston,182012,Environment Waste Management Recycling
South Lakeland District Council,http://opendatacommunities.org/id/district-council/south-lakeland,31/08/2017,Development Implementation,Central Services,http://opendatacommunities.org/def/concept/finance/sercop/objective/102,Masterstaff Limited,2777593,07/08/2017,69944,186,0,SLDC Admin -  12hrs,261300,HR Recruitment & Assessment
South Lakeland District Council,http://opendatacommunities.org/id/district-council/south-lakeland,31/08/2017,Development Implementation,Central Services,http://opendatacommunities.org/def/concept/finance/sercop/objective/102,Masterstaff Limited,2777593,02/08/2017,70068,183,0,SLDC Admin - 12hrs,261300,HR Recruitment & Assessment
South Lakeland District Council,http://opendatacommunities.org/id/district-council/south-lakeland,31/08/2017,Development Implementation,Central Services,http://opendatacommunities.org/def/concept/finance/sercop/objective/102,Masterstaff Limited,2777593,30/08/2017,70468,174,0,SLDC Admin -- 12hrs,261300,HR Recruitment & Assessment
South Lakeland District Council,http://opendatacommunities.org/id/district-council/south-lakeland,31/08/2017,Development Implementation,Central Services,http://opendatacommunities.org/def/concept/finance/sercop/objective/102,CUMBRIA WASTE RECYCLING LTD,3162439,14/08/2017,70436,262.52,0,South Lakeland House bin & skip emptying,182012,Environment Waste Management Recycling
South Lakeland District Council,http://opendatacommunities.org/id/district-council/south-lakeland,31/08/2017,Customer Services,Central Services,http://opendatacommunities.org/def/concept/finance/sercop/objective/102,JOHNSTON PUBLISHING LTD,1919088,21/08/2017,70669,9787.58,0,South lakeland news,171114,Education Literature
South Lakeland District Council,http://opendatacommunities.org/id/district-council/south-lakeland,31/08/2017,Financial Services,Central Services,http://opendatacommunities.org/def/concept/finance/sercop/objective/102,TRAFFORD COUNCIL,5498172,16/08/2017,70521,750,0,Spendpro spend analysis tool 2016/17,202100,Financial Services Subscriptions
South Lakeland District Council,http://opendatacommunities.org/id/district-council/south-lakeland,31/08/2017,Business Support Community Services,Internal Trading Accounts,,CUMBRIA TRUCK CENTRE LTD,4298488,07/08/2017,70261,746.1,0,Spring,381300,Vehicle Mgt Industrial
South Lakeland District Council,http://opendatacommunities.org/id/district-council/south-lakeland,31/08/2017,Business Support Community Services,Internal Trading Accounts,,SOLWAY DAF,1393710,02/08/2017,70141,97.33,0,Spring,381000,Vehicle Mgt Commercial
South Lakeland District Council,http://opendatacommunities.org/id/district-council/south-lakeland,31/08/2017,Policy & Partnerships,Cultural Environmental Regulatory & Planning Services,http://opendatacommunities.org/def/concept/finance/sercop/objective/104,LAKE DISTRICT SUMMER MUSIC,1887957,23/08/2017,70663,5000,0,Strategic Cultural Partnership grant,291300,Arts & Leisure Services Performing Arts
South Lakeland District Council,http://opendatacommunities.org/id/district-council/south-lakeland,31/08/2017,Policy & Partnerships,Cultural Environmental Regulatory & Planning Services,http://opendatacommunities.org/def/concept/finance/sercop/objective/104,LAKELAND ARTS,8162578,23/08/2017,70033,20000,0,Strategic Cultural Partnership grant,201700,Financial Services Grants
South Lakeland District Council,http://opendatacommunities.org/id/district-council/south-lakeland,31/08/2017,Business Support Community Services,Cultural Environmental Regulatory & Planning Services,http://opendatacommunities.org/def/concept/finance/sercop/objective/104,GB Sign Solutions Ltd,9609330,02/08/2017,70140,258.58,0,Street Nameplates 2016/17,102400,Building Signage
South Lakeland District Council,http://opendatacommunities.org/id/district-council/south-lakeland,31/08/2017,Business Support Community Services,Cultural Environmental Regulatory & Planning Services,http://opendatacommunities.org/def/concept/finance/sercop/objective/104,GB Sign Solutions Ltd,9609330,09/08/2017,70248,364.25,0,Street Nameplates 2016/17,102400,Building Signage
South Lakeland District Council,http://opendatacommunities.org/id/district-council/south-lakeland,31/08/2017,Business Support Community Services,Cultural Environmental Regulatory & Planning Services,http://opendatacommunities.org/def/concept/finance/sercop/objective/104,GB Sign Solutions Ltd,9609330,09/08/2017,70306,65,0,Street Nameplates 2016/17,102400,Building Signage
South Lakeland District Council,http://opendatacommunities.org/id/district-council/south-lakeland,31/08/2017,Business Support Community Services,Cultural Environmental Regulatory & Planning Services,http://opendatacommunities.org/def/concept/finance/sercop/objective/104,GB Sign Solutions Ltd,9609330,09/08/2017,70308,66.75,0,Street Nameplates 2016/17,102400,Building Signage
South Lakeland District Council,http://opendatacommunities.org/id/district-council/south-lakeland,31/08/2017,Business Support Community Services,Cultural Environmental Regulatory & Planning Services,http://opendatacommunities.org/def/concept/finance/sercop/objective/104,GB Sign Solutions Ltd,9609330,30/08/2017,70768,134,0,Street Nameplates 2016/17,102400,Building Signage
South Lakeland District Council,http://opendatacommunities.org/id/district-council/south-lakeland,31/08/2017,Human Resources,Central Services,http://opendatacommunities.org/def/concept/finance/sercop/objective/102,EMPLOYMENT PAGES LTD,7363099,16/08/2017,70590,244.8,0,Support Assistant - Development Mgt Team,261400,HR Temporary & Agency Staff
South Lakeland District Council,http://opendatacommunities.org/id/district-council/south-lakeland,31/08/2017,Business Support Community Services,Internal Trading Accounts,,DENNIS EAGLE LTD,3794455,09/08/2017,70295,49.23,0,Switch,381300,Vehicle Mgt Industrial
South Lakeland District Council,http://opendatacommunities.org/id/district-council/south-lakeland,31/08/2017,Business Support Community Services,Internal Trading Accounts,,DENNIS EAGLE LTD,3794455,09/08/2017,70296,153.9,0,Switch,381300,Vehicle Mgt Industrial
South Lakeland District Council,http://opendatacommunities.org/id/district-council/south-lakeland,31/08/2017,Business Support Community Services,Internal Trading Accounts,,DENNIS EAGLE LTD,3794455,09/08/2017,70299,233.81,0,Switch,381300,Vehicle Mgt Industrial
South Lakeland District Council,http://opendatacommunities.org/id/district-council/south-lakeland,31/08/2017,Business Support Community Services,Internal Trading Accounts,,DENNIS EAGLE LTD,3794455,09/08/2017,70300,17.52,0,Switch,381300,Vehicle Mgt Industrial
South Lakeland District Council,http://opendatacommunities.org/id/district-council/south-lakeland,31/08/2017,Business Support Community Services,Internal Trading Accounts,,DENNIS EAGLE LTD,3794455,09/08/2017,70301,261.43,0,Switch,381300,Vehicle Mgt Industrial
South Lakeland District Council,http://opendatacommunities.org/id/district-council/south-lakeland,31/08/2017,Business Support Community Services,Internal Trading Accounts,,DENNIS EAGLE LTD,3794455,09/08/2017,70302,156.2,0,Switch,381300,Vehicle Mgt Industrial
South Lakeland District Council,http://opendatacommunities.org/id/district-council/south-lakeland,31/08/2017,Business Support Community Services,Internal Trading Accounts,,FAUN ZOELLER (UK) LTD,751804,02/08/2017,70093,158.4,0,Switch,381400,Vehicle Mgt Maintenance
South Lakeland District Council,http://opendatacommunities.org/id/district-council/south-lakeland,31/08/2017,Business Support Community Services,Internal Trading Accounts,,FAUN ZOELLER (UK) LTD,751804,02/08/2017,70094,225.5,0,Switch,381400,Vehicle Mgt Maintenance
South Lakeland District Council,http://opendatacommunities.org/id/district-council/south-lakeland,31/08/2017,Business Support Community Services,Internal Trading Accounts,,FAUN ZOELLER (UK) LTD,751804,02/08/2017,70095,76,0,Switch,381400,Vehicle Mgt Maintenance
South Lakeland District Council,http://opendatacommunities.org/id/district-council/south-lakeland,31/08/2017,Business Support Community Services,Internal Trading Accounts,,WasteParts UK Ltd,,21/08/2017,69386,280.64,0,Switches,381500,Vehicle Mgt Parts
South Lakeland District Council,http://opendatacommunities.org/id/district-council/south-lakeland,31/08/2017,Financial Services,Central Services,http://opendatacommunities.org/def/concept/finance/sercop/objective/102,Capita Secure Information Solutions Ltd,1593831,23/08/2017,70705,5000,0,Technical support for Integra2 upgrade,271600,ICT Software Customised & Bespoke
South Lakeland District Council,http://opendatacommunities.org/id/district-council/south-lakeland,31/08/2017,Development Management,Cultural Environmental Regulatory & Planning Services,http://opendatacommunities.org/def/concept/finance/sercop/objective/104,Ronnie Haddow Chimney Services,,16/08/2017,70586,100,0,Test and inspection of wood burning,131310,Cleaning & Janitorial Cleaning Service
South Lakeland District Council,http://opendatacommunities.org/id/district-council/south-lakeland,31/08/2017,Business Support Community Services,Internal Trading Accounts,,CUMBRIA COUNTY COUNCIL,,14/08/2017,70414,39701.49,0,"Tipping & disposal charges, recyclables",908000,Public Bodies Council support services
South Lakeland District Council,http://opendatacommunities.org/id/district-council/south-lakeland,31/08/2017,Business Support Community Services,Internal Trading Accounts,,CUMBRIA COUNTY COUNCIL,,14/08/2017,70415,47967.62,0,"Tipping & disposal charges, recyclables",908000,Public Bodies Council support services
South Lakeland District Council,http://opendatacommunities.org/id/district-council/south-lakeland,31/08/2017,Development Strategy,Central Services,http://opendatacommunities.org/def/concept/finance/sercop/objective/102,ROYAL TOWN PLANNING INSTITUTE,,23/08/2017,70331,-50,0,to attend Leisure,908999,Public Bodies Not Elsewhere Classified
South Lakeland District Council,http://opendatacommunities.org/id/district-council/south-lakeland,31/08/2017,Social Enterprise Admin,Cultural Environmental Regulatory & Planning Services,http://opendatacommunities.org/def/concept/finance/sercop/objective/104,LDA Cleaning Services Ltd,8917986,14/08/2017,70450,190,0,To clean the toilet block at Ferry  Nab,131310,Cleaning & Janitorial Cleaning Service
South Lakeland District Council,http://opendatacommunities.org/id/district-council/south-lakeland,31/08/2017,Social Enterprise Admin,Cultural Environmental Regulatory & Planning Services,http://opendatacommunities.org/def/concept/finance/sercop/objective/104,LDA Cleaning Services Ltd,8917986,21/08/2017,70604,175,0,To clean the toilet block at Ferry  Nab,131310,Cleaning & Janitorial Cleaning Service
South Lakeland District Council,http://opendatacommunities.org/id/district-council/south-lakeland,31/08/2017,Social Enterprise Admin,Cultural Environmental Regulatory & Planning Services,http://opendatacommunities.org/def/concept/finance/sercop/objective/104,LDA Cleaning Services Ltd,8917986,23/08/2017,70690,175,0,To clean the toilet block at Ferry  Nab,131310,Cleaning & Janitorial Cleaning Service
South Lakeland District Council,http://opendatacommunities.org/id/district-council/south-lakeland,31/08/2017,Business Support Community Services,Housing Services,http://opendatacommunities.org/def/concept/finance/sercop/objective/108,O'Connell & Bean,,21/08/2017,70674,52,0,"Toilet repair for 15 Fleece Inn Yard,",101100,Building Electrical
South Lakeland District Council,http://opendatacommunities.org/id/district-council/south-lakeland,31/08/2017,Business Support Community Services,Internal Trading Accounts,,LANCASTER TRAINING SERVICES LTD,1447612,07/08/2017,70304,1166,0,Training 2017/18 (SWK),261500,HR Training & Conferences
South Lakeland District Council,http://opendatacommunities.org/id/district-council/south-lakeland,31/08/2017,Development Implementation,Cultural Environmental Regulatory & Planning Services,http://opendatacommunities.org/def/concept/finance/sercop/objective/104,THE KNACK DESIGN CONSULTANTS LTD,3966727,14/08/2017,70390,500,0,Transferring the Intellectual Property,190000,Facilities & Management Services
South Lakeland District Council,http://opendatacommunities.org/id/district-council/south-lakeland,31/08/2017,Social Enterprise Admin,Cultural Environmental Regulatory & Planning Services,http://opendatacommunities.org/def/concept/finance/sercop/objective/104,AMBLESIDE TREE SERVICES LTD,4460471,21/08/2017,70462,720,0,Tree work Re: Stockghyll Ash tree,241210,Horticultural Tree Trimming
South Lakeland District Council,http://opendatacommunities.org/id/district-council/south-lakeland,31/08/2017,Business Support Community Services,Internal Trading Accounts,,Preston Trade Parts Specialists,,02/08/2017,70091,41.34,0,TUrnsignal,381400,Vehicle Mgt Maintenance
South Lakeland District Council,http://opendatacommunities.org/id/district-council/south-lakeland,31/08/2017,Business Support Community Services,Internal Trading Accounts,,Harry Park Tyres Ltd,8131208,09/08/2017,70269,1275,0,Tyres - 12,381500,Vehicle Mgt Parts
South Lakeland District Council,http://opendatacommunities.org/id/district-council/south-lakeland,31/08/2017,Business Support Community Services,Internal Trading Accounts,,Harry Park Tyres Ltd,8131208,09/08/2017,70270,1440,0,Tyres - 12,381500,Vehicle Mgt Parts
South Lakeland District Council,http://opendatacommunities.org/id/district-council/south-lakeland,31/08/2017,Business Support Community Services,Internal Trading Accounts,,Harry Park Tyres Ltd,8131208,21/08/2017,70646,30,0,Tyres - 12,381500,Vehicle Mgt Parts
South Lakeland District Council,http://opendatacommunities.org/id/district-council/south-lakeland,31/08/2017,Business Support Community Services,Internal Trading Accounts,,Harry Park Tyres Ltd,8131208,21/08/2017,70647,3330,0,Tyres - 12,381500,Vehicle Mgt Parts
South Lakeland District Council,http://opendatacommunities.org/id/district-council/south-lakeland,31/08/2017,Business Support Community Services,Internal Trading Accounts,,Harry Park Tyres Ltd,8131208,02/08/2017,70080,537.5,0,Tyres - 17,381500,Vehicle Mgt Parts
South Lakeland District Council,http://opendatacommunities.org/id/district-council/south-lakeland,31/08/2017,Business Support Community Services,Internal Trading Accounts,,Harry Park Tyres Ltd,8131208,02/08/2017,70090,60,0,Tyres - 17,381500,Vehicle Mgt Parts
South Lakeland District Council,http://opendatacommunities.org/id/district-council/south-lakeland,31/08/2017,Development Implementation,Central Services,http://opendatacommunities.org/def/concept/finance/sercop/objective/102,CUMBRIA WASTE RECYCLING LTD,3162439,14/08/2017,70438,54.68,0,Ulverston Town Hall Queen Street 1,182012,Environment Waste Management Recycling
South Lakeland District Council,http://opendatacommunities.org/id/district-council/south-lakeland,31/08/2017,Business Support Community Services,Internal Trading Accounts,,C T HAYTON LTD,1212766,16/08/2017,70564,2.43,0,Union,391200,Construction Engineering
South Lakeland District Council,http://opendatacommunities.org/id/district-council/south-lakeland,31/08/2017,Business Support Community Services,Internal Trading Accounts,,J R RICHARDSON LTD,2225792,09/08/2017,70286,140.58,0,Vehicle washing consumables,381500,Vehicle Mgt Parts
South Lakeland District Council,http://opendatacommunities.org/id/district-council/south-lakeland,31/08/2017,Business Support Community Services,Internal Trading Accounts,,J R RICHARDSON LTD,2225792,30/08/2017,70745,190.13,0,Vehicle washing consumables,381500,Vehicle Mgt Parts
South Lakeland District Council,http://opendatacommunities.org/id/district-council/south-lakeland,31/08/2017,ICT Group,Central Services,http://opendatacommunities.org/def/concept/finance/sercop/objective/102,CAPITA BUSINESS SERVICES LTD,2299747,21/08/2017,70190,300,0,VX 820 device (USB),261500,HR Training & Conferences
South Lakeland District Council,http://opendatacommunities.org/id/district-council/south-lakeland,31/08/2017,Development Implementation,Cultural Environmental Regulatory & Planning Services,http://opendatacommunities.org/def/concept/finance/sercop/objective/104,CUMBRIA WASTE RECYCLING LTD,3162439,14/08/2017,70441,112.4,0,"Waste Collection at 124 Highgate, Kendal",182012,Environment Waste Management Recycling
South Lakeland District Council,http://opendatacommunities.org/id/district-council/south-lakeland,31/08/2017,Business Support Community Services,Internal Trading Accounts,,Slicker Recycling Ltd,8652156,02/08/2017,70159,127,0,Waste oil filter drum,182015,Environment Waste Mgt Waste Disposal
South Lakeland District Council,http://opendatacommunities.org/id/district-council/south-lakeland,31/08/2017,Social Enterprise Admin,Highways & Transport Services,http://opendatacommunities.org/def/concept/finance/sercop/objective/107,METRIC GROUP LIMITED,2560839,07/08/2017,70205,693,0,Web hosting and web tariff editor for 66,359999,Street & Traffic Not Elsewhere Classifie
South Lakeland District Council,http://opendatacommunities.org/id/district-council/south-lakeland,31/08/2017,Kendal Town Hall,Cultural Environmental Regulatory & Planning Services,http://opendatacommunities.org/def/concept/finance/sercop/objective/104,CUMBRIA WASTE RECYCLING LTD,3162439,21/08/2017,70437,136,0,Weekly collection of mixed waste bins,182012,Environment Waste Management Recycling
South Lakeland District Council,http://opendatacommunities.org/id/district-council/south-lakeland,31/08/2017,Kendal Town Hall,Central Services,http://opendatacommunities.org/def/concept/finance/sercop/objective/102,BERENDSEN UK LTD,228604,07/08/2017,70161,118.7,0,Weekly exchange and cleaning of the non,161000,Domestic Goods Commercial
South Lakeland District Council,http://opendatacommunities.org/id/district-council/south-lakeland,31/08/2017,Kendal Town Hall,Cultural Environmental Regulatory & Planning Services,http://opendatacommunities.org/def/concept/finance/sercop/objective/104,BERENDSEN UK LTD,228604,07/08/2017,70161,28.3,0,Weekly exchange and cleaning of the non,161000,Domestic Goods Commercial
South Lakeland District Council,http://opendatacommunities.org/id/district-council/south-lakeland,31/08/2017,Development Implementation,Transport,http://opendatacommunities.org/def/concept/finance/sercop/objective/107,KENDAL SECURITY CENTRE LTD,3179893,23/08/2017,70227,7635,0,Westmorland Car Park - Deliver & Install,192212,Facilities Security Equipment
South Lakeland District Council,http://opendatacommunities.org/id/district-council/south-lakeland,31/08/2017,Social Enterprise Admin,Highways & Transport Services,http://opendatacommunities.org/def/concept/finance/sercop/objective/107,CUMBRIA WASTE RECYCLING LTD,3162439,21/08/2017,70439,51.56,0,Westmorland Multistorey 60 ltr bin April,182012,Environment Waste Management Recycling
South Lakeland District Council,http://opendatacommunities.org/id/district-council/south-lakeland,31/08/2017,Leisure and Wellbeing,Cultural Environmental Regulatory & Planning Services,http://opendatacommunities.org/def/concept/finance/sercop/objective/104,SOUTH LAKES TREE SURGEONS & LANDSCAPES,5342745,02/08/2017,70135,1560,0,"Works at Baddeley Clock, Windermere",241210,Horticultural Tree Trimming
South Lakeland District Council,http://opendatacommunities.org/id/district-council/south-lakeland,31/08/2017,Business Support Community Services,Internal Trading Accounts,,BERENDSEN UK LTD,228604,07/08/2017,70285,332,0,Workwear hire 02/04/17 - 31/03/18,161000,Domestic Goods Commercial
South Lakeland District Council,http://opendatacommunities.org/id/district-council/south-lakeland,31/08/2017,Human Resources,Central Services,http://opendatacommunities.org/def/concept/finance/sercop/objective/102,IOSH SERVICES LTD,1816826,02/08/2017,70162,150,0,WS5.0 PACK/250484 event fee,221100,Health & Safety� Maintenance
South Lakeland District Council,http://opendatacommunities.org/id/district-council/south-lakeland,31/08/2017,Policy & Partnerships,Central Services,http://opendatacommunities.org/def/concept/finance/sercop/objective/102,MERITEC LTD,3224622,23/08/2017,70694,17000,0,Year 1 Second Contract Payment,391200,Construction Engineering
